Invoice ID,Supplier,PaidDate,Subjective Code,Subjective Name,Service Area,Cost Centre Name,Invoiced
2054077,24/7 Minibuses,20101223,34402,Clients  Taxi Fares,Environmental Services,Social Needs Transport,972.00
2039147,24/7 Minibuses,20101206,34402,Clients  Taxi Fares,Environmental Services,Social Needs Transport,"1,782.00"
2054082,3D Private Hire#Cars,20101223,34402,Clients  Taxi Fares,Environmental Services,Social Needs Transport,"2,935.02"
2039150,3D Private Hire#Cars,20101206,34402,Clients  Taxi Fares,Environmental Services,Social Needs Transport,"5,068.52"
2053895,A & D Joinery Ltd#2,20101223,Z1051,Work in Progress Additions,Housing GRF,Capital  General Fund,"1,910.02"
2044161,A & L Hope,20101209,Z1051,Work in Progress Additions,Housing GRF,Capital  General Fund,"13,987.50"
2038697,A B Health Ltd,20101206,53100,Agency Staff  Fulltime,Chief Executives Department,Personnel Svs Occ Health Unit,937.50
2050280,A B Health Ltd,20101220,53100,Agency Staff  Fulltime,Chief Executives Department,Personnel Svs Occ Health Unit,"1,500.00"
2053861,A B Health Ltd,20101223,53100,Agency Staff  Fulltime,Chief Executives Department,Personnel Svs Occ Health Unit,"1,000.00"
2049086,A E Yates Ltd,20101216,Z1051,Work in Progress Additions,Environmental Services,Environmental Services Balance sheet,"7,234.64"
2037210,A P S (Specialist Contractors) Ltd,20101216,20100,Day To Day Maintenance,Property Services,Town Hall,540.00
2054089,AAB Taxi Services,20101223,34402,Clients  Taxi Fares,Environmental Services,Social Needs Transport,"1,035.00"
2039152,AAB Taxi Services,20101206,34402,Clients  Taxi Fares,Environmental Services,Social Needs Transport,"2,038.50"
2043545,Abacus Healthcare Services Limited#Close Invoice Finance Ltd,20101209,44051,Clients Aids & Adaptations,Adult Services,AD ICES,794.00
2039289,Abafields Residential Home,20101207,54301,Residential Provision,Adult Services,MH Residential External Provision,"1,493.52"
2039289,Abafields Residential Home,20101207,54301,Residential Provision,Adult Services,OA  External Provision Residential,"24,999.76"
2054084,Abbey Private Hire,20101223,34402,Clients  Taxi Fares,Environmental Services,Social Needs Transport,907.20
2039151,Abbey Private Hire,20101206,34402,Clients  Taxi Fares,Environmental Services,Social Needs Transport,"1,663.20"
2039326,Abbeywood Tottington Ltd,20101207,54301,Residential Provision,Adult Services,OA  External Provision Residential,"1,543.56"
2051627,Abbot Transcription & Typing Service,20101220,48509,Other Fees,Children's Services,Management Team,735.69
2048452,Access Intelligence Media & Communications Ltd,20101216,40700,Newspapers,Central Services,Communication & Marketing Agency,"4,050.00"
2053718,Access to Care Ltd,20101223,52000,Vol Assoc Grants  General,Children's Services,Res Serv Agency Placements,800.00
2053721,Access to Care Ltd,20101223,52000,Vol Assoc Grants  General,Children's Services,Res Serv Agency Placements,850.00
2053706,Access to Care Ltd,20101223,52000,Vol Assoc Grants  General,Children's Services,Res Serv Agency Placements,800.00
2053629,Access to Care Ltd,20101223,52000,Vol Assoc Grants  General,Children's Services,Res Serv Agency Placements,850.00
2053664,Access to Care Ltd,20101223,52000,Vol Assoc Grants  General,Children's Services,Res Serv Agency Placements,850.00
2053695,Access to Care Ltd,20101223,52000,Vol Assoc Grants  General,Children's Services,Res Serv Agency Placements,850.00
2053712,Access to Care Ltd,20101223,52000,Vol Assoc Grants  General,Children's Services,Res Serv Agency Placements,850.00
2053714,Access to Care Ltd,20101223,52000,Vol Assoc Grants  General,Children's Services,Res Serv Agency Placements,850.00
2038529,Access to Care Ltd,20101206,52000,Vol Assoc Grants  General,Children's Services,Res Serv Agency Placements,800.00
2038530,Access to Care Ltd,20101206,52000,Vol Assoc Grants  General,Children's Services,Res Serv Agency Placements,850.00
2038522,Access to Care Ltd,20101206,52000,Vol Assoc Grants  General,Children's Services,Res Serv Agency Placements,800.00
2038524,Access to Care Ltd,20101206,52000,Vol Assoc Grants  General,Children's Services,Res Serv Agency Placements,850.00
2038525,Access to Care Ltd,20101206,52000,Vol Assoc Grants  General,Children's Services,Res Serv Agency Placements,850.00
2038520,Access to Care Ltd,20101206,52000,Vol Assoc Grants  General,Children's Services,Res Serv Agency Placements,850.00
2038528,Access to Care Ltd,20101206,52000,Vol Assoc Grants  General,Children's Services,Res Serv Agency Placements,850.00
2038526,Access to Care Ltd,20101206,52000,Vol Assoc Grants  General,Children's Services,Res Serv Agency Placements,850.00
2054095,ACE Minibuses Ltd,20101223,34402,Clients  Taxi Fares,Environmental Services,Social Needs Transport,"2,983.50"
2039154,ACE Minibuses Ltd,20101206,34402,Clients  Taxi Fares,Environmental Services,Social Needs Transport,"4,896.00"
2037553,Ace PA Ltd,20101209,40102,Operational Equipment Rental,Environmental Services,Greenspace,750.00
2039416,Across The Bay,20101207,54301,Residential Provision,Adult Services,OA  External Provision Residential,"1,626.00"
2055046,Addiction Dependency Solutions#ADS,20101230,52000,Vol Assoc Grants  General,Adult Services,Drugs Action Team,"15,934.17"
2055065,Addiction Dependency Solutions#ADS,20101230,52000,Vol Assoc Grants  General,Adult Services,Drugs Action Team,"12,351.25"
2055810,ADT Fire & Security plc,20101223,20100,Day To Day Maintenance,Adult Services,Libraries  Resources,552.52
2051550,Advanced Building (NW) Ltd,20101220,53100,Agency Staff  Fulltime,Property Services,Facilities Management,"1,190.00"
2048367,AGR Care Services,20101216,52000,Vol Assoc Grants  General,Children's Services,Res Serv Agency Placements,"11,160.00"
2055910,Aidapt Bathrooms Ltd,20101230,44051,Clients Aids & Adaptations,Adult Services,AD ICES,"1,729.20"
2050436,Aidapt Bathrooms Ltd,20101223,44051,Clients Aids & Adaptations,Adult Services,AD ICES,"1,165.70"
2039337,Ainsworth Nursing Home,20101207,54301,Residential Provision,Adult Services,MH Residential External Provision,"6,174.24"
2039337,Ainsworth Nursing Home,20101207,54302,Nursing Provision,Adult Services,MH Residential External Provision,"3,087.12"
2039337,Ainsworth Nursing Home,20101207,54302,Nursing Provision,Adult Services,OA  External Provision Residential,"4,630.68"
2039337,Ainsworth Nursing Home,20101207,54301,Residential Provision,Adult Services,PD Purchaser Residential Care,"1,543.56"
2039402,Alexander Court,20101207,54301,Residential Provision,Adult Services,OA  External Provision Residential,"1,555.00"
2054102,Alims Minibuses/ Mr M Alim Khan,20101223,34402,Clients  Taxi Fares,Environmental Services,Social Needs Transport,"1,053.00"
2039156,Alims Minibuses/ Mr M Alim Khan,20101206,34402,Clients  Taxi Fares,Environmental Services,Social Needs Transport,"1,782.00"
2052286,All Gates & Railings#AGR,20101220,Z1051,Work in Progress Additions,Housing Revenue Account,Capital  HRA,"87,207.99"
2044798,All Gates & Railings#AGR,20101213,Z1051,Work in Progress Additions,Housing Revenue Account,Capital  HRA,"22,478.85"
2037104,All Gates & Railings#AGR,20101202,Z1051,Work in Progress Additions,Housing Revenue Account,Capital  HRA,"9,775.98"
2043833,Allpay.net Ltd,20101209,48509,Other Fees,Finance Department,CSD Cashiers,"1,927.51"
2043840,Allpay.net Ltd,20101209,48509,Other Fees,Finance Department,CSD Cashiers,730.89
2043837,Allpay.net Ltd,20101209,48509,Other Fees,Finance Department,CSD Cashiers,"7,558.04"
2055766,Alsecure Group Ltd,20101223,44401,Other Security Expenses,Housing GRF,Benjamin Court Accommodation,839.16
2040768,Alsecure Group Ltd,20101213,44401,Other Security Expenses,Housing GRF,Benjamin Court Accommodation,839.16
2039405,Altham Care Home,20101207,54301,Residential Provision,Adult Services,OA  External Provision Residential,"1,556.00"
2054109,AMA Cabs,20101223,34402,Clients  Taxi Fares,Environmental Services,Social Needs Transport,666.90
2039159,AMA Cabs,20101206,34402,Clients  Taxi Fares,Environmental Services,Social Needs Transport,"1,128.60"
2049097,Amande Concerts UK,20101216,48501,Artistes Fees,Adult Services,Albert Halls  Entertainments,"3,447.34"
2045890,AMS Maintenance Services,20101230,20100,Day To Day Maintenance,Property Services,Farnworth Area Office,515.40
2055618,Anchor Care,20101223,52200,Contracted Services,Adult Services,OA Extra Care Housing External Provision,"157,252.50"
2055140,Anchor Trust#2,20101223,52200,Contracted Services,Adult Services,OA  Home Care Services external provision,"20,674.12"
2055149,Anchor Trust#2,20101223,52200,Contracted Services,Adult Services,OA  Home Care Services external provision,"19,987.10"
2055152,Anchor Trust#2,20101223,52200,Contracted Services,Adult Services,OA  Home Care Services external provision,"20,364.64"
2054977,Andersons (Wholesale) Ltd,20101223,41101,Catering ProvisionsFood,Adult Services,Albert Halls  Entertainments,"1,087.34"
2052994,Aon Ltd,20101223,28100,Other Prem Insurance Direct,Adult Services,Mus & Archives Collections Management,509.25
2046324,Apetito Ltd,20101220,41101,Catering ProvisionsFood,Adult Services,OA  Community Meals,"1,554.33"
2053444,Apetito Ltd,20101223,41101,Catering ProvisionsFood,Adult Services,OA  Community Meals,"1,583.87"
2038199,Apetito Ltd,20101223,41101,Catering ProvisionsFood,Adult Services,OA  Community Meals,"1,365.90"
2040640,Apetito Ltd,20101220,41101,Catering ProvisionsFood,Adult Services,OA  Community Meals,"1,263.65"
2040641,Apetito Ltd,20101220,41101,Catering ProvisionsFood,Adult Services,OA  Community Meals,"1,185.39"
2053290,Apetito Ltd,20101223,41101,Catering ProvisionsFood,Adult Services,OA  Community Meals,"1,680.86"
2054646,Apetito Ltd,20101230,41101,Catering ProvisionsFood,Adult Services,OA  Community Meals,"1,295.93"
2040773,Apna News,20101209,48509,Other Fees,Housing GRF,Bolton Community Homes,625.00
2038212,Applied Card Technologies Limited,20101223,45430,Computer Software,Finance Department,Corporate Smartcard,"2,000.00"
2038211,Applied Card Technologies Limited,20101223,45401,Computer Maintenance,Finance Department,Corporate Smartcard,"15,000.00"
2056913,AQA,20101230,48630,NonStaff Training,Children's Services,Yth Ser  Training & Development,"15,639.85"
2055905,AquaJoy Bathlifts Ltd,20101230,44051,Clients Aids & Adaptations,Adult Services,AD ICES,586.00
2052348,Arctic Refrigeration (Bolton) Ltd,20101220,20100,Day To Day Maintenance,Central Corporate,Tonge Bridge,630.00
2045874,Arctic Refrigeration (Bolton) Ltd,20101213,40107,Kitchen Equipment,Adult Services,OA  Winifred Kettle  Residential,990.00
2053790,Arctic Refrigeration (Bolton) Ltd,20101223,45401,Computer Maintenance,Finance Department,Corporate IT Investment,691.10
2049880,Arena Group Ltd,20101216,45401,Computer Maintenance,Development & Regen,D&R Departmental Account,994.07
2053142,Arval Ltd,20101223,31301,Vehicle Fuel,Environmental Services,Greenspace,"2,818.64"
2053142,Arval Ltd,20101223,31301,Vehicle Fuel,Environmental Services,Highway Services,"2,061.64"
2053142,Arval Ltd,20101223,31301,Vehicle Fuel,Environmental Services,Highway Works  Unallocated Costs,"4,631.49"
2053142,Arval Ltd,20101223,31301,Vehicle Fuel,Environmental Services,Security Services,656.83
2053142,Arval Ltd,20101223,31301,Vehicle Fuel,Environmental Services,Social Needs Transport,"7,201.17"
2053142,Arval Ltd,20101223,31301,Vehicle Fuel,Environmental Services,Streets & Grounds,"8,011.76"
2053142,Arval Ltd,20101223,31301,Vehicle Fuel,Environmental Services,Waste,"24,789.23"
2045771,Arval Ltd,20101216,31301,Vehicle Fuel,Adult Services,AD ICES,665.34
2045771,Arval Ltd,20101216,31301,Vehicle Fuel,Environmental Services,Greenspace,"3,703.30"
2045771,Arval Ltd,20101216,31301,Vehicle Fuel,Environmental Services,Highway Services,"1,122.30"
2045771,Arval Ltd,20101216,31301,Vehicle Fuel,Environmental Services,Highway Works  Unallocated Costs,"7,330.11"
2045771,Arval Ltd,20101216,31301,Vehicle Fuel,Environmental Services,Pest Control,513.92
2045771,Arval Ltd,20101216,31301,Vehicle Fuel,Environmental Services,Security Services,836.16
2045771,Arval Ltd,20101216,31301,Vehicle Fuel,Environmental Services,Social Needs Transport,"9,388.16"
2045771,Arval Ltd,20101216,31301,Vehicle Fuel,Environmental Services,Streets & Grounds,"12,813.50"
2045771,Arval Ltd,20101216,31301,Vehicle Fuel,Environmental Services,Waste,"36,175.99"
2050413,ASDA Business Rewards,20101220,52300,Client Support Costs,Development & Regen,Addressing Worklessness,975.00
2039856,Asda Pharmacy,20101206,52200,Contracted Services,Adult Services,Drugs Action Team,801.70
2039365,Ashleigh House Care Home,20101207,54301,Residential Provision,Adult Services,OA  External Provision Residential,"1,356.00"
2039381,Ashwood Rest Home,20101207,54301,Residential Provision,Adult Services,OA  External Provision Residential,"1,624.00"
2057023,Asian Elders Resource Centre,20101230,48204,Promoting Events,Central Corporate,Valuing Diversity Working Party,800.00
2049561,Asm Accessories Ltd,20101216,44051,Clients Aids & Adaptations,Adult Services,AD ICES,620.00
2048260,Aspen,20101223,43032,Office Stationery,Finance Department,Council Tax,"1,282.50"
2039404,Asra House,20101207,54301,Residential Provision,Adult Services,OA  External Provision Residential,"1,596.00"
2056957,Associated Cleaning Contractors,20101230,26101,Contract Cleaning,Children's Services,Technical Innovation Centre,"1,256.33"
2051629,Associated Cleaning Contractors,20101220,26101,Contract Cleaning,Adult Services,Prop. Servs. Thicketford,540.00
2050052,Associated Cleaning Contractors,20101220,52200,Contracted Services,Housing GRF,Access & Advice Housing Options Centre,854.60
2052193,Associated Cleaning Contractors,20101220,26100,Window Cleaning,Children's Services,Management Team,"2,031.80"
2053371,Associated Cleaning Contractors,20101223,26101,Contract Cleaning,Children's Services,Technical Innovation Centre,"1,256.33"
2039867,Assura Pharmacy,20101206,52200,Contracted Services,Adult Services,Drugs Action Team,505.97
2039333,Astley Grange,20101207,54302,Nursing Provision,Adult Services,OA  External Provision Residential,"9,583.28"
2049903,Avonline plc,20101216,20100,Day To Day Maintenance,Housing Revenue Account,communal areas & CCTV,"1,814.50"
2049914,Avonline plc,20101216,20100,Day To Day Maintenance,Housing Revenue Account,communal areas & CCTV,"1,002.25"
2054963,B & M Davies (Plant Hire) Ltd,20101230,33201,Transport Hire,Environmental Services,Bereavement Services,500.00
2055943,B & M Davies (Plant Hire) Ltd,20101230,Z6008,Expense AP Accrual,Bolton MBC Balance Sheet,Bolton MBC Balance Sheet,640.10
2054959,B & M Davies (Plant Hire) Ltd,20101230,33202,Plant Hire,Environmental Services,Bereavement Services,"1,000.00"
2048575,B & M Davies (Plant Hire) Ltd,20101223,Z6008,Expense AP Accrual,Bolton MBC Balance Sheet,Bolton MBC Balance Sheet,"2,245.70"
2048338,B & M Davies (Plant Hire) Ltd,20101223,33202,Plant Hire,Environmental Services,Bereavement Services,640.10
2054967,B & M Davies (Plant Hire) Ltd,20101230,33202,Plant Hire,Environmental Services,Bereavement Services,640.10
2054891,B & M Davies (Plant Hire) Ltd,20101230,33202,Plant Hire,Environmental Services,Greenspace,850.50
2038354,B & M Davies (Plant Hire) Ltd,20101220,Z6008,Expense AP Accrual,Bolton MBC Balance Sheet,Bolton MBC Balance Sheet,640.10
2038358,B & M Davies (Plant Hire) Ltd,20101220,Z6008,Expense AP Accrual,Bolton MBC Balance Sheet,Bolton MBC Balance Sheet,640.10
2040101,B & M Davies (Plant Hire) Ltd,20101213,Z6008,Expense AP Accrual,Bolton MBC Balance Sheet,Bolton MBC Balance Sheet,640.10
2056086,B & M Davies (Plant Hire) Ltd,20101230,Z6008,Expense AP Accrual,Bolton MBC Balance Sheet,Bolton MBC Balance Sheet,"1,164.90"
2044162,B Foley & Son,20101209,Z1051,Work in Progress Additions,Housing GRF,Capital  General Fund,"14,408.00"
2039380,Bank House Care Home,20101207,54301,Residential Provision,Adult Services,OA  External Provision Residential,"1,543.56"
2050552,Bardon Contracting (Northern),20101220,Z1051,Work in Progress Additions,Highways,Stores,"69,980.42"
2039396,Beechville Care Home,20101207,54301,Residential Provision,Adult Services,OA  External Provision Residential,"2,983.44"
2039397,Beechwood House,20101207,54301,Residential Provision,Adult Services,OA  External Provision Residential,"1,864.80"
2053619,Bertram Library Services,20101223,40753,Book Fund Expenditure,Adult Services,Libraries  Resources,"8,478.32"
2053934,Bertram Library Services,20101223,40753,Book Fund Expenditure,Adult Services,Libraries  Resources,"3,303.24"
2053055,Bethell Construction Ltd,20101223,Z1051,Work in Progress Additions,Highways,Stores,"104,567.90"
2048909,Beverages Direct Ltd,20101216,41101,Catering ProvisionsFood,Environmental Services,Catering,649.03
2048559,Bickford Truck Hire Ltd,20101223,33201,Transport Hire,Environmental Services,Transport Support Service,924.00
2037293,Birkdale Design Ltd,20101206,40150,Office Furniture Purchase,Housing Revenue Account,Furnished Tenancies,691.00
2053276,Birkdale Design Ltd,20101223,40150,Office Furniture Purchase,Housing Revenue Account,Furnished Tenancies,610.00
2037351,Birkdale Design Ltd,20101206,40150,Office Furniture Purchase,Housing Revenue Account,Furnished Tenancies,937.00
2037166,Birkdale Design Ltd,20101202,40150,Office Furniture Purchase,Housing Revenue Account,Furnished Tenancies,745.00
2053239,Birkdale Design Ltd,20101223,40150,Office Furniture Purchase,Housing Revenue Account,Furnished Tenancies,610.00
2053411,Birkdale Design Ltd,20101223,40150,Office Furniture Purchase,Housing Revenue Account,Furnished Tenancies,745.00
2053409,Birkdale Design Ltd,20101223,40150,Office Furniture Purchase,Housing Revenue Account,Furnished Tenancies,745.00
2053407,Birkdale Design Ltd,20101223,40150,Office Furniture Purchase,Housing Revenue Account,Furnished Tenancies,937.00
2053272,Birkdale Design Ltd,20101223,40150,Office Furniture Purchase,Housing Revenue Account,Furnished Tenancies,745.00
2053259,Birkdale Design Ltd,20101223,40150,Office Furniture Purchase,Housing Revenue Account,Furnished Tenancies,745.00
2053278,Birkdale Design Ltd,20101223,40150,Office Furniture Purchase,Housing Revenue Account,Furnished Tenancies,610.00
2037349,Birkdale Design Ltd,20101206,40150,Office Furniture Purchase,Housing Revenue Account,Furnished Tenancies,730.00
2037352,Birkdale Design Ltd,20101206,40150,Office Furniture Purchase,Housing Revenue Account,Furnished Tenancies,852.00
2037353,Birkdale Design Ltd,20101206,40150,Office Furniture Purchase,Housing Revenue Account,Furnished Tenancies,606.00
2037345,Birkdale Design Ltd,20101206,40150,Office Furniture Purchase,Housing Revenue Account,Furnished Tenancies,745.00
2037150,Birkdale Design Ltd,20101202,40150,Office Furniture Purchase,Housing Revenue Account,Furnished Tenancies,700.00
2037123,Birkdale Design Ltd,20101202,40150,Office Furniture Purchase,Housing Revenue Account,Furnished Tenancies,745.00
2037347,Birkdale Design Ltd,20101206,40150,Office Furniture Purchase,Housing Revenue Account,Furnished Tenancies,745.00
2037346,Birkdale Design Ltd,20101206,40150,Office Furniture Purchase,Housing Revenue Account,Furnished Tenancies,745.00
2037208,Birkdale Design Ltd,20101206,40150,Office Furniture Purchase,Housing Revenue Account,Furnished Tenancies,610.00
2037279,Birkdale Design Ltd,20101206,40150,Office Furniture Purchase,Housing Revenue Account,Furnished Tenancies,745.00
2037163,Birkdale Design Ltd,20101202,40150,Office Furniture Purchase,Housing Revenue Account,Furnished Tenancies,826.00
2037196,Birkdale Design Ltd,20101206,40150,Office Furniture Purchase,Housing Revenue Account,Furnished Tenancies,826.00
2037355,Birkdale Design Ltd,20101206,40150,Office Furniture Purchase,Housing Revenue Account,Furnished Tenancies,745.00
2053449,Birkdale Design Ltd,20101223,40150,Office Furniture Purchase,Housing Revenue Account,Furnished Tenancies,745.00
2053191,Birkdale Design Ltd,20101223,40150,Office Furniture Purchase,Housing Revenue Account,Furnished Tenancies,745.00
2037155,Birkdale Design Ltd,20101202,40150,Office Furniture Purchase,Housing Revenue Account,Furnished Tenancies,826.00
2037108,Birkdale Design Ltd,20101202,40150,Office Furniture Purchase,Housing Revenue Account,Furnished Tenancies,745.00
2053405,Birkdale Design Ltd,20101223,40150,Office Furniture Purchase,Housing Revenue Account,Furnished Tenancies,745.00
2053236,Birkdale Design Ltd,20101223,40150,Office Furniture Purchase,Housing Revenue Account,Furnished Tenancies,826.00
2037343,Birkdale Design Ltd,20101206,40150,Office Furniture Purchase,Housing Revenue Account,Furnished Tenancies,632.00
2048363,Birtenshaw Hall (Childrens Charitable Trust),20101216,52000,Vol Assoc Grants  General,Children's Services,Disability Serv External Provision,"9,044.87"
2048361,Birtenshaw Hall (Childrens Charitable Trust),20101216,52000,Vol Assoc Grants  General,Children's Services,Disability Serv External Provision,"12,621.43"
2039338,Blackrod House,20101207,54301,Residential Provision,Adult Services,OA  External Provision Residential,"3,981.12"
2039339,Blackrod House,20101207,54301,Residential Provision,Adult Services,OA  External Provision Residential,"20,943.17"
2053401,Blackshaw Sykes & Morris Ltd,20101223,43001,Printing General,Central Services,Printing Services,"1,795.00"
2053129,Blakeley Tonge & Partner Ltd,20101223,20102,Health & Safety,Property Services,Annual Charge Holding Account,"7,929.08"
2055784,Blakeley Tonge & Partner Ltd,20101223,Z1051,Work in Progress Additions,Housing GRF,Capital  General Fund,"25,004.71"
2053138,Blakeley Tonge & Partner Ltd,20101223,20102,Health & Safety,Property Services,Annual Charge Holding Account,"6,720.95"
2053135,Blakeley Tonge & Partner Ltd,20101223,20102,Health & Safety,Property Services,Annual Charge Holding Account,"7,265.61"
2053121,Blakeley Tonge & Partner Ltd,20101223,20102,Health & Safety,Property Services,Annual Charge Holding Account,"10,351.11"
2043653,Blakeley Tonge & Partner Ltd,20101209,Z1051,Work in Progress Additions,Adult Services,Adult Services Balance Sheet,"2,015.70"
2051608,Blakeley Tonge & Partner Ltd,20101220,20102,Health & Safety,Property Services,Annual Charge Holding Account,"5,724.18"
2051610,Blakeley Tonge & Partner Ltd,20101220,20102,Health & Safety,Property Services,Annual Charge Holding Account,"1,438.53"
2053133,Blakeley Tonge & Partner Ltd,20101223,20102,Health & Safety,Property Services,Annual Charge Holding Account,"9,990.91"
2052374,BNP Paribas Lease Group (Rentals),20101220,40143,Office Equipment Leased Rental,Chief Executives Department,MFD Project,"1,958.00"
2046540,Bold Communications Ltd,20101220,25106,C.C.T.V.,Development & Regen,REDD BBCRU Projects,"1,250.00"
2055125,Bolton & District Citizens Advice Bureau LTD,20101223,47103,Miscellaneous Grants,Chief Executives Department,Partnerships,"43,218.00"
2054349,Bolton Carpet Warehouse,20101223,40150,Office Furniture Purchase,Housing Revenue Account,Furnished Tenancies,641.70
2053532,Bolton Carpet Warehouse,20101223,40150,Office Furniture Purchase,Housing Revenue Account,Furnished Tenancies,569.79
2037132,Bolton Carpet Warehouse,20101202,40150,Office Furniture Purchase,Housing Revenue Account,Furnished Tenancies,756.81
2054339,Bolton Carpet Warehouse,20101223,40150,Office Furniture Purchase,Housing Revenue Account,Furnished Tenancies,569.79
2054642,Bolton Carpet Warehouse,20101223,40150,Office Furniture Purchase,Housing Revenue Account,Furnished Tenancies,641.70
2053342,Bolton Carpet Warehouse,20101223,40150,Office Furniture Purchase,Housing Revenue Account,Furnished Tenancies,641.70
2053938,Bolton Carpet Warehouse,20101223,40150,Office Furniture Purchase,Housing Revenue Account,Furnished Tenancies,569.79
2037164,Bolton Carpet Warehouse,20101209,40150,Office Furniture Purchase,Housing Revenue Account,Furnished Tenancies,641.70
2037168,Bolton Carpet Warehouse,20101202,40150,Office Furniture Purchase,Housing Revenue Account,Furnished Tenancies,886.43
2054783,Bolton Carpet Warehouse,20101223,40150,Office Furniture Purchase,Housing Revenue Account,Furnished Tenancies,641.70
2045260,Bolton Community College#2,20101213,48629,Miscellaneous Expenses,Special Funding,Neighbourhood Management,"12,230.00"
2054033,Bolton Community College#2,20101223,41101,Catering ProvisionsFood,Chief Executives Department,Partnerships,"2,003.00"
2055724,Bolton Community College#2,20101223,19100,Training Exps Tuition Fees,Children's Services,Schools Advsry Serv Teenage Preg AF,"1,100.00"
2052773,Bolton Community College#2,20101221,52200,Contracted Services,Adult Services,Leisure  Overhead Account,"225,980.38"
2056213,Bolton Community Leisure Ltd,20101223,52200,Contracted Services,Adult Services,Leisure  Overhead Account,"225,980.38"
2052828,Bolton Community Leisure Ltd,20101221,52200,Contracted Services,Adult Services,Leisure  Overhead Account,"225,980.38"
2057025,Bolton Community Radio,20101230,55700,Grant Funded Expenditure,Special Funding,ABG Projects,"7,471.00"
2057024,Bolton Community Transport & Furniture Services#bct & fs,20101230,47103,Miscellaneous Grants,Chief Executives Department,Partnerships,"5,820.00"
2052214,Bolton CVS#Bolton Community & Voluntary Services,20101220,55700,Grant Funded Expenditure,Special Funding,ABG Projects,"18,698.50"
2037402,Bolton CVS#Bolton Community & Voluntary Services,20101206,52004,Voluntary Sector Area Working Grants,Environmental Services,Greenspace,"3,000.00"
2052215,Bolton CVS#Bolton Community & Voluntary Services,20101220,55700,Grant Funded Expenditure,Special Funding,ABG Projects,"50,601.25"
2052216,Bolton CVS#Bolton Community & Voluntary Services,20101220,55700,Grant Funded Expenditure,Special Funding,ABG Projects,"3,252.00"
2052217,Bolton CVS#Bolton Community & Voluntary Services,20101220,55700,Grant Funded Expenditure,Special Funding,ABG Projects,"8,196.75"
2050422,Bolton Fundco 1 Limited,20101220,Z1051,Work in Progress Additions,Development & Regen,Development & Regeneration Capital,"733,308.91"
2056920,Bolton Lads & Girls Club,20101230,47103,Miscellaneous Grants,Children's Services,Youth Serv Voluntary Organisations,"6,250.00"
2056924,Bolton Lads & Girls Club,20101230,47103,Miscellaneous Grants,Children's Services,Youth Serv Voluntary Organisations,"1,750.00"
2056924,Bolton Lads & Girls Club,20101230,52200,Contracted Services,Chief Executives Department,ABG Budget for Area Working,"2,500.00"
2056924,Bolton Lads & Girls Club,20101230,Z1051,Work in Progress Additions,Housing Revenue Account,Capital  HRA,"5,000.00"
2052218,Bolton Lads & Girls Club,20101220,55700,Grant Funded Expenditure,Special Funding,DR LSC/ESF CoFinancing (SF),"2,471.62"
2048373,Bolton Parent Partnership,20101216,52001,Vol Sect Grants  Misc,Children's Services,Prim NonDeleg SEN Parent Partnrshp,"21,327.00"
2051194,Bolton Primary Care Trust#12#Bolton PCT,20101220,54300,Independant Sector Placements,Adult Services,OA  External Provision Residential,"9,019.30"
2048837,Bolton Primary Care Trust#12#Bolton PCT,20101216,48509,Other Fees,Children's Services,Speech Therapy,"28,595.45"
2053889,Bolton Primary Care Trust#12#Bolton PCT,20101223,52200,Contracted Services,Adult Services,LD Purchaser Supported Housing,"203,342.00"
2054391,Bolton Primary Care Trust#12#Bolton PCT,20101223,52200,Contracted Services,Adult Services,MH Residential External Provision,"1,632.00"
2054119,Bolton Private Hire Ltd,20101223,34402,Clients  Taxi Fares,Environmental Services,Social Needs Transport,"2,934.63"
2039165,Bolton Private Hire Ltd,20101206,34402,Clients  Taxi Fares,Environmental Services,Social Needs Transport,"4,504.51"
2048465,Bolton Stone Restoration Ltd,20101216,20100,Day To Day Maintenance,Adult Services,Mus & Archives Hall I'th Wood,"5,060.67"
2048372,Bolton Stone Restoration Ltd,20101216,20100,Day To Day Maintenance,Environmental Services,Greenspace,575.00
2052256,Bolton Stone Restoration Ltd,20101220,20100,Day To Day Maintenance,Central Corporate,Land & Property,"9,469.84"
2043650,Bolton Stone Restoration Ltd,20101209,20100,Day To Day Maintenance,Central Corporate,Land & Property,"9,469.84"
2053413,Bolton Stone Restoration Ltd,20101223,20100,Day To Day Maintenance,Environmental Services,Greenspace,"1,094.94"
2040717,Bolton Wall & Flooring Ltd,20101209,20102,Health & Safety,Adult Services,Library Management,"1,434.00"
2053505,Bolton WISE Ltd#eatWISE#WISEWorks#WISEtraining (14-19),20101223,Z1051,Work in Progress Additions,Housing Revenue Account,Capital  HRA,"1,216.00"
2044190,Bolton WISE Ltd#eatWISE#WISEWorks#WISEtraining (14-19),20101209,Z1051,Work in Progress Additions,Housing Revenue Account,Capital  HRA,"1,269.59"
2056024,Bolton Young Persons Housing Scheme#BYPHS,20101230,52000,Vol Assoc Grants  General,Children's Services,Res Serv Agency Placements,"1,885.71"
2056023,Bolton Young Persons Housing Scheme#BYPHS,20101230,52000,Vol Assoc Grants  General,Children's Services,Res Serv Agency Placements,"1,885.71"
2050076,Bolton Young Persons Housing Scheme#BYPHS,20101220,44054,Other Clients Services,Children's Services,Child Prot Leaving Care Team,"19,500.00"
2056026,Bolton Young Persons Housing Scheme#BYPHS,20101230,52000,Vol Assoc Grants  General,Children's Services,Res Serv Agency Placements,"3,000.00"
2050269,Bolton Young Persons Housing Scheme#BYPHS,20101220,52300,Client Support Costs,Children's Services,Child Prot Leaving Care Team,554.25
2039872,Boots The Chemist,20101206,52200,Contracted Services,Adult Services,Drugs Action Team,"1,265.13"
2039394,Bowerswood House Retirement Home Ltd,20101207,54301,Residential Provision,Adult Services,OA  External Provision Residential,"1,440.00"
2056990,Box Of Frogs,20101230,48630,NonStaff Training,Adult Services,OA  Carers Grant,635.00
2048927,Box Of Frogs,20101216,52200,Contracted Services,Adult Services,Drugs Action Team,"3,700.00"
2053481,Brian McCallister & Sons,20101223,Z1051,Work in Progress Additions,Housing GRF,Capital  General Fund,"1,300.00"
2055024,Bridge Counselling Solutions,20101223,48510,Consultancy Fees,Development & Regen,Addressing Worklessness,"3,600.00"
2055028,Bridge Counselling Solutions,20101223,48510,Consultancy Fees,Development & Regen,Coalfields,"3,240.00"
2055029,Bridge Counselling Solutions,20101223,48510,Consultancy Fees,Development & Regen,Addressing Worklessness,"3,200.00"
2055026,Bridge Counselling Solutions,20101223,48510,Consultancy Fees,Development & Regen,Addressing Worklessness,"1,061.52"
2039167,Bridge Private Hire#Mr I Arshad,20101206,34402,Clients  Taxi Fares,Environmental Services,Social Needs Transport,980.00
2043591,British Gas Business,20101209,21200,Gas  General,Adult Services,Prop. Servs. Winifred Kettle,"19,698.22"
2043591,British Gas Business,20101209,21200,Gas  General,Environmental Services,Mngmnt & Admin Overhead,"53,482.60"
2043591,British Gas Business,20101209,21200,Gas  General,Central Corporate,Land & Property,814.30
2043591,British Gas Business,20101209,21200,Gas  General,Housing Revenue Account,Housing Revenue Account,"45,251.91"
2043591,British Gas Business,20101209,21200,Gas  General,Property Services,Admin Buildings  General,"3,338.11"
2043591,British Gas Business,20101209,21200,Gas  General,Property Services,Castle Hill,"2,088.48"
2048857,British Gas Business,20101216,21200,Gas  General,Housing Revenue Account,Housing Revenue Account,"4,097.35"
2038775,British Gas Business,20101206,21100,Electricity  General,Housing Revenue Account,Housing Revenue Account,"12,431.89"
2048858,British Gas Business,20101216,21200,Gas  General,Housing Revenue Account,Housing Revenue Account,643.32
2045720,Britvic Soft Drinks Ltd,20101213,41106,Bar Stock,Adult Services,Civic Catering Town Hall Bar,636.57
2055952,Broadway Malyan Limited,20101230,Z1051,Work in Progress Additions,Housing Revenue Account,Capital  HRA,"1,215.00"
2037405,Broadway Malyan Limited,20101206,Z1051,Work in Progress Additions,Housing Revenue Account,Capital  HRA,"1,215.00"
2040817,Broken Colour Decorators Ltd,20101209,Z1051,Work in Progress Additions,Development & Regen,Development & Regeneration Capital,"5,113.50"
2049998,Bronte Natural Spring Water Ltd,20101216,40613,Goods for Resale,Adult Services,Civic Catering Dido,729.60
2039401,Brookfield Residential Care Home Ltd,20101207,54301,Residential Provision,Adult Services,MH Residential External Provision,"2,200.00"
2052479,Brookvale,20101220,52200,Contracted Services,Adult Services,LD Purchaser Day Services,"1,300.00"
2039359,Brookvale,20101207,54301,Residential Provision,Adult Services,LD Purchaser Residential Care,"7,000.00"
2048714,Brothers Of Charity Services,20101230,52200,Contracted Services,Adult Services,LD Purchaser Day Services,801.16
2048714,Brothers Of Charity Services,20101230,52200,Contracted Services,Adult Services,LD Purchaser Domiciliary Care,937.44
2038506,Brothers Of Charity Services,20101209,52200,Contracted Services,Adult Services,LD Purchaser Domiciliary Care,"2,124.40"
2039356,Brothers Of Charity Services,20101207,54302,Nursing Provision,Adult Services,LD Purchaser Residential Care,"3,617.20"
2039320,Browfield Residential Care Home,20101207,54301,Residential Provision,Adult Services,MH Residential External Provision,"4,663.48"
2048693,Buildbase Civils & Lintels,20101216,40601,General Materials,Environmental Services,Greenspace,760.00
2055856,Burnt Tree Group,20101223,33201,Transport Hire,Environmental Services,Transport Support Service,"1,430.00"
2051104,Burnt Tree Group,20101220,33201,Transport Hire,Environmental Services,Transport Support Service,"1,040.00"
2051105,Burnt Tree Group,20101220,33201,Transport Hire,Environmental Services,Transport Support Service,"1,040.00"
2055852,Burnt Tree Group,20101223,33201,Transport Hire,Environmental Services,Transport Support Service,"1,430.00"
2055820,Burnt Tree Group,20101223,33201,Transport Hire,Environmental Services,Transport Support Service,"1,430.00"
2055817,Burnt Tree Group,20101223,33201,Transport Hire,Environmental Services,Transport Support Service,"1,430.00"
2055819,Burnt Tree Group,20101223,33201,Transport Hire,Environmental Services,Transport Support Service,"1,430.00"
2039419,Burrswood House,20101207,54301,Residential Provision,Adult Services,OA  External Provision Residential,"1,809.78"
2039420,Burrswood House,20101207,54301,Residential Provision,Adult Services,OA  External Provision Residential,622.11
2053028,C & D Care Solutions Ltd#2#Barclays Bank PLC,20101223,52200,Contracted Services,Adult Services,OA  Home Care Services external provision,"20,894.20"
2052202,C Horrocks & Sons Ltd,20101220,20300,Heating & Electrical Work,Adult Services,Albert Halls  Operations,930.72
2052197,C Horrocks & Sons Ltd,20101220,20100,Day To Day Maintenance,Property Services,Admin Buildings  General,545.05
2037312,C M Fair Joinery Ltd,20101206,40100,Operational Equipment Purchase,Children's Services,Disability Serv Avondale Street,998.00
2053898,CA Group Ltd,20101223,20101,Programmed Maint. Work,Environmental Services,Depots,"119,681.31"
2053896,CA Group Ltd,20101223,20101,Programmed Maint. Work,Environmental Services,Depots,"12,853.09"
2055047,CACI Ltd,20101223,45431,Computer Software Licences,Central Services,Marketing  Consultation & Research,"3,761.78"
2054650,Capita Software Services,20101230,48510,Consultancy Fees,Finance Department,T&B Systems Project Team,"1,125.00"
2055879,Capita Software Services,20101223,48510,Consultancy Fees,Finance Department,T&B Systems Project Team,"6,000.00"
2038907,Capital Project Consultancy Limited#CPC,20101206,48510,Consultancy Fees,Adult Services,AD  Commissioners,"6,633.75"
2040739,Capstick Construction,20101209,Z1051,Work in Progress Additions,Housing GRF,Capital  General Fund,"1,000.00"
2037052,Care Corner Limited,20101202,40100,Operational Equipment Purchase,Adult Services,OA  Wilfred Geere  Residential,590.00
2037051,Care Corner Limited,20101202,40100,Operational Equipment Purchase,Adult Services,OA  Wilfred Geere  Residential,590.00
2039366,Care Stanley Grange,20101207,54301,Residential Provision,Adult Services,LD Purchaser Residential Care,"3,640.64"
2055860,Care Today Childrens Service,20101223,52000,Vol Assoc Grants  General,Children's Services,Res Serv Agency Placements,"12,000.00"
2055857,Care Today Childrens Service,20101223,52000,Vol Assoc Grants  General,Children's Services,Res Serv Agency Placements,"11,460.30"
2055863,Care Today Childrens Service,20101223,52000,Vol Assoc Grants  General,Children's Services,Res Serv Agency Placements,"11,492.40"
2049068,Care UK Homecare#Care UK (Bolton),20101216,52200,Contracted Services,Adult Services,OA  Home Care Services external provision,"93,762.73"
2043529,Carewatch (Bolton),20101209,52200,Contracted Services,Adult Services,MH Residential External Provision,988.83
2043531,Carewatch (Bolton),20101209,52200,Contracted Services,Adult Services,MH Residential External Provision,"2,547.45"
2053031,Carewatch (Bolton),20101223,52200,Contracted Services,Adult Services,OA  Home Care Services external provision,"91,902.38"
2053029,Carewatch (Bolton),20101223,52200,Contracted Services,Adult Services,OA  Home Care Services external provision,824.53
2055023,Carolyn Jepps Ltd,20101223,Z1051,Work in Progress Additions,Housing GRF,Capital  General Fund,500.00
2054049,Catalyst Consulting Ltd,20101223,46004,Staff Training Courses,Adult Services,AD  IT,"9,200.00"
2048568,CB Building And Joinery Ltd,20101216,44051,Clients Aids & Adaptations,Adult Services,ASC External Funded Schemes,895.00
2055574,CB Building And Joinery Ltd,20101223,44051,Clients Aids & Adaptations,Adult Services,ASC External Funded Schemes,610.00
2048560,CB Building And Joinery Ltd,20101216,44051,Clients Aids & Adaptations,Adult Services,ASC External Funded Schemes,905.00
2040358,CEMEX UK Materials Ltd,20101220,Z6008,Expense AP Accrual,Bolton MBC Balance Sheet,Bolton MBC Balance Sheet,"2,543.53"
2054130,Central Cars & Buses,20101223,34402,Clients  Taxi Fares,Environmental Services,Social Needs Transport,"1,166.40"
2039170,Central Cars & Buses,20101206,34402,Clients  Taxi Fares,Environmental Services,Social Needs Transport,"2,138.40"
2051455,CFAB,20101220,48509,Other Fees,Children's Services,Management Team,700.00
2050095,Chamberlink Limited,20101220,47200,General Subscriptions,Development & Regen,Bus Comp and Employment Engage,"1,060.00"
2039322,Chataway Nursing Home,20101207,54302,Nursing Provision,Adult Services,MH Residential External Provision,"2,142.16"
2039378,Cherry Hinton Nursing Home,20101207,54302,Nursing Provision,Adult Services,OA  External Provision Residential,"1,896.00"
2050442,Cheshire Centre for Independant Living,20101220,53000,Private Contracted Services,Adult Services,AD Direct Payments Team,"6,873.50"
2048957,Child Action Northwest,20101216,52000,Vol Assoc Grants  General,Children's Services,Res Serv Agency Placements,"6,000.00"
2053988,Choices Home for Children Ltd,20101223,52000,Vol Assoc Grants  General,Children's Services,Res Serv Agency Placements,"7,561.29"
2053987,Choices Home for Children Ltd,20101223,52000,Vol Assoc Grants  General,Children's Services,Res Serv Agency Placements,"8,765.25"
2041173,Ciceley Commercial,20101222,31305,Vehicle Servicing,Environmental Services,Transport Support Service,"2,691.00"
2041181,Ciceley Commercial,20101222,31305,Vehicle Servicing,Environmental Services,Transport Support Service,"1,469.15"
2048571,CIPFA Business Ltd,20101223,47200,General Subscriptions,Finance Department,Financial Management,780.00
2039352,Cleveleys Nursing Home,20101207,54301,Residential Provision,Adult Services,OA  External Provision Residential,"1,752.00"
2041012,Clicquot Utilities Ltd,20101209,52200,Contracted Services,Finance Department,Housing Benefits,693.00
2051253,Clicquot Utilities Ltd,20101220,52200,Contracted Services,Finance Department,Housing Benefits,672.00
2052205,Clicquot Utilities Ltd,20101220,52200,Contracted Services,Finance Department,Housing Benefits,717.00
2051478,Cobbetts LLP,20101220,Z1051,Work in Progress Additions,Housing Revenue Account,Capital  HRA,853.00
2039890,Cohens Chemist#2,20101206,52200,Contracted Services,Adult Services,Drugs Action Team,631.95
2055097,Colours Wholesale Flowers,20101230,40609,Horticultural Materials,Environmental Services,Heaton Fold,673.10
2037079,Comensura Ltd,20101202,53102,Agency Staff  Other,Adult Services,AD Finance,"1,096.32"
2037079,Comensura Ltd,20101202,53102,Agency Staff  Other,Adult Services,AD Performance Mgmnt,903.02
2037079,Comensura Ltd,20101202,53102,Agency Staff  Other,Adult Services,AD Transforming Social Care,"4,317.54"
2037079,Comensura Ltd,20101202,53102,Agency Staff  Other,Adult Services,OA  Alderbank  Residential,528.35
2037079,Comensura Ltd,20101202,53102,Agency Staff  Other,Adult Services,OA  Darley Court Intermediate Care,645.01
2037079,Comensura Ltd,20101202,53102,Agency Staff  Other,Adult Services,OA Fieldwork Hospital Team,685.89
2037079,Comensura Ltd,20101202,53102,Agency Staff  Other,Environmental Services,Markets  Rent Account,"2,114.78"
2037079,Comensura Ltd,20101202,53102,Agency Staff  Other,Environmental Services,Transport Support Service,629.72
2037079,Comensura Ltd,20101202,53102,Agency Staff  Other,Environmental Services,Waste,"4,972.61"
2037079,Comensura Ltd,20101202,53102,Agency Staff  Other,Children's Services,Business Support  Children Social Care,"1,846.38"
2037079,Comensura Ltd,20101202,53102,Agency Staff  Other,Children's Services,LAC Team South,"3,628.25"
2037079,Comensura Ltd,20101202,53102,Agency Staff  Other,Children's Services,Safeguarding Team North,863.94
2037079,Comensura Ltd,20101202,53102,Agency Staff  Other,Children's Services,Safeguarding Team South,948.29
2037079,Comensura Ltd,20101202,53102,Agency Staff  Other,Children's Services,YOT  Fieldwork Team,"1,132.70"
2037079,Comensura Ltd,20101202,53102,Agency Staff  Other,Chief Executives Department,Personnel Svs Occ Health Unit,"1,169.00"
2037079,Comensura Ltd,20101202,53102,Agency Staff  Other,Central Services,Web Team,"1,045.99"
2037079,Comensura Ltd,20101202,53102,Agency Staff  Other,Finance Department,Accounts Receivable (R & B),787.57
2037079,Comensura Ltd,20101202,53102,Agency Staff  Other,Finance Department,C.R.M. Operations,"6,202.93"
2037079,Comensura Ltd,20101202,53102,Agency Staff  Other,Finance Department,Financial Management,890.57
2037079,Comensura Ltd,20101202,53102,Agency Staff  Other,Finance Department,Oracle Support Team,"1,401.05"
2037079,Comensura Ltd,20101202,53102,Agency Staff  Other,Property Services,Operational Facilities Management,"1,197.72"
2037079,Comensura Ltd,20101202,53102,Agency Staff  Other,Property Services,Projects,"1,973.66"
2055732,Comensura Ltd,20101223,53102,Agency Staff  Other,Adult Services,AD  Contracts,619.50
2055732,Comensura Ltd,20101223,53102,Agency Staff  Other,Adult Services,AD Performance Mgmnt,777.01
2055732,Comensura Ltd,20101223,53102,Agency Staff  Other,Adult Services,AD Transforming Social Care,838.42
2055732,Comensura Ltd,20101223,53102,Agency Staff  Other,Adult Services,OA  Alderbank  Residential,727.42
2055732,Comensura Ltd,20101223,53102,Agency Staff  Other,Adult Services,OA  Darley Court Intermediate Care,787.44
2055732,Comensura Ltd,20101223,53102,Agency Staff  Other,Adult Services,OA Fieldwork Hospital Team,860.27
2055732,Comensura Ltd,20101223,53102,Agency Staff  Other,Environmental Services,Greenspace,"1,578.47"
2055732,Comensura Ltd,20101223,53102,Agency Staff  Other,Environmental Services,Markets  Rent Account,"1,045.63"
2055732,Comensura Ltd,20101223,53102,Agency Staff  Other,Environmental Services,Pest Control,563.88
2055732,Comensura Ltd,20101223,53102,Agency Staff  Other,Environmental Services,Streets & Grounds,"2,526.08"
2055732,Comensura Ltd,20101223,53102,Agency Staff  Other,Environmental Services,Transport Support Service,557.06
2055732,Comensura Ltd,20101223,53102,Agency Staff  Other,Environmental Services,Waste,"2,199.66"
2055732,Comensura Ltd,20101223,53102,Agency Staff  Other,Children's Services,Business Support  Children Social Care,"2,269.03"
2055732,Comensura Ltd,20101223,53102,Agency Staff  Other,Children's Services,LAC Team South,"1,757.93"
2055732,Comensura Ltd,20101223,53102,Agency Staff  Other,Children's Services,Safeguarding Team South,576.66
2055732,Comensura Ltd,20101223,53102,Agency Staff  Other,Children's Services,YOT  Fieldwork Team,933.80
2055732,Comensura Ltd,20101223,53102,Agency Staff  Other,Housing GRF,Strategic Housing,624.19
2055732,Comensura Ltd,20101223,53102,Agency Staff  Other,Chief Executives Department,Personnel Svs Occ Health Unit,"1,349.10"
2055732,Comensura Ltd,20101223,53102,Agency Staff  Other,Central Services,Infrastructure DevelopmentCVS,"1,045.99"
2055732,Comensura Ltd,20101223,53102,Agency Staff  Other,Central Services,Printing Services,502.88
2055732,Comensura Ltd,20101223,53102,Agency Staff  Other,Finance Department,C.R.M. Operations,"6,365.62"
2055732,Comensura Ltd,20101223,53102,Agency Staff  Other,Finance Department,Financial Management,"1,889.18"
2055732,Comensura Ltd,20101223,53102,Agency Staff  Other,Finance Department,Oracle Support Team,"1,401.05"
2055732,Comensura Ltd,20101223,53102,Agency Staff  Other,Development & Regen,Addressing Worklessness,685.30
2055732,Comensura Ltd,20101223,53102,Agency Staff  Other,Property Services,Operational Facilities Management,"1,159.34"
2055732,Comensura Ltd,20101223,53102,Agency Staff  Other,Property Services,Projects,"1,894.93"
2049876,Comensura Ltd,20101216,53102,Agency Staff  Other,Adult Services,AD  Contracts,788.73
2049876,Comensura Ltd,20101216,53102,Agency Staff  Other,Adult Services,AD Performance Mgmnt,777.01
2049876,Comensura Ltd,20101216,53102,Agency Staff  Other,Adult Services,OA  Alderbank  Residential,"1,176.15"
2049876,Comensura Ltd,20101216,53102,Agency Staff  Other,Adult Services,OA Fieldwork Hospital Team,860.27
2049876,Comensura Ltd,20101216,53102,Agency Staff  Other,Environmental Services,Bereavement Services,661.90
2049876,Comensura Ltd,20101216,53102,Agency Staff  Other,Environmental Services,Markets  Rent Account,558.79
2049876,Comensura Ltd,20101216,53102,Agency Staff  Other,Environmental Services,Pest Control,563.88
2049876,Comensura Ltd,20101216,53102,Agency Staff  Other,Environmental Services,Streets & Grounds,"2,474.24"
2049876,Comensura Ltd,20101216,53102,Agency Staff  Other,Environmental Services,Transport Support Service,666.05
2049876,Comensura Ltd,20101216,53102,Agency Staff  Other,Environmental Services,Waste,"2,275.68"
2049876,Comensura Ltd,20101216,53102,Agency Staff  Other,Children's Services,Business Support  Children Social Care,"1,887.07"
2049876,Comensura Ltd,20101216,53102,Agency Staff  Other,Children's Services,LAC Team South,"1,922.92"
2049876,Comensura Ltd,20101216,53102,Agency Staff  Other,Children's Services,Safeguarding Team North,762.32
2049876,Comensura Ltd,20101216,53102,Agency Staff  Other,Children's Services,Safeguarding Team South,948.29
2049876,Comensura Ltd,20101216,53102,Agency Staff  Other,Children's Services,YOT  Fieldwork Team,"1,289.45"
2049876,Comensura Ltd,20101216,53102,Agency Staff  Other,Chief Executives Department,Personnel Svs Occ Health Unit,"1,249.33"
2049876,Comensura Ltd,20101216,53102,Agency Staff  Other,Central Services,Infrastructure DevelopmentCVS,"1,045.99"
2049876,Comensura Ltd,20101216,53102,Agency Staff  Other,Central Services,Printing Services,502.87
2049876,Comensura Ltd,20101216,53102,Agency Staff  Other,Finance Department,C.R.M. Operations,"6,644.99"
2049876,Comensura Ltd,20101216,53102,Agency Staff  Other,Finance Department,Financial Management,890.57
2049876,Comensura Ltd,20101216,53102,Agency Staff  Other,Finance Department,Oracle Support Team,"1,401.05"
2049876,Comensura Ltd,20101216,53102,Agency Staff  Other,Development & Regen,Addressing Worklessness,685.30
2049876,Comensura Ltd,20101216,53102,Agency Staff  Other,Property Services,Operational Facilities Management,"1,202.16"
2049876,Comensura Ltd,20101216,53102,Agency Staff  Other,Property Services,Projects,545.40
2044275,Comensura Ltd,20101213,53102,Agency Staff  Other,Adult Services,AD  Contracts,"1,178.52"
2044275,Comensura Ltd,20101213,53102,Agency Staff  Other,Adult Services,AD Performance Mgmnt,"1,060.51"
2044275,Comensura Ltd,20101213,53102,Agency Staff  Other,Adult Services,AD Transforming Social Care,838.42
2044275,Comensura Ltd,20101213,53102,Agency Staff  Other,Adult Services,OA  Alderbank  Residential,"1,219.49"
2044275,Comensura Ltd,20101213,53102,Agency Staff  Other,Adult Services,OA  Darley Court Intermediate Care,608.78
2044275,Comensura Ltd,20101213,53102,Agency Staff  Other,Adult Services,OA Fieldwork Hospital Team,860.27
2044275,Comensura Ltd,20101213,53102,Agency Staff  Other,Environmental Services,Markets  Rent Account,"2,518.79"
2044275,Comensura Ltd,20101213,53102,Agency Staff  Other,Environmental Services,Pest Control,"4,113.60"
2044275,Comensura Ltd,20101213,53102,Agency Staff  Other,Environmental Services,Streets & Grounds,"4,177.44"
2044275,Comensura Ltd,20101213,53102,Agency Staff  Other,Environmental Services,Transport Support Service,641.83
2044275,Comensura Ltd,20101213,53102,Agency Staff  Other,Environmental Services,Waste,839.50
2044275,Comensura Ltd,20101213,53102,Agency Staff  Other,Children's Services,Business Support  Children Social Care,"1,923.86"
2044275,Comensura Ltd,20101213,53102,Agency Staff  Other,Children's Services,LAC Team South,986.21
2044275,Comensura Ltd,20101213,53102,Agency Staff  Other,Children's Services,Safeguarding Team North,762.32
2044275,Comensura Ltd,20101213,53102,Agency Staff  Other,Children's Services,Safeguarding Team South,948.29
2044275,Comensura Ltd,20101213,53102,Agency Staff  Other,Children's Services,YOT  Fieldwork Team,"1,132.70"
2044275,Comensura Ltd,20101213,53102,Agency Staff  Other,Chief Executives Department,Personnel Svs Occ Health Unit,"1,278.70"
2044275,Comensura Ltd,20101213,53102,Agency Staff  Other,Central Services,Civic & Admin Text & Reprographics,"1,498.76"
2044275,Comensura Ltd,20101213,53102,Agency Staff  Other,Central Services,Infrastructure DevelopmentCVS,"1,045.99"
2044275,Comensura Ltd,20101213,53102,Agency Staff  Other,Central Services,Printing Services,"2,023.64"
2044275,Comensura Ltd,20101213,53102,Agency Staff  Other,Central Corporate,Coroners,792.64
2044275,Comensura Ltd,20101213,53102,Agency Staff  Other,Finance Department,Accounts Receivable (R & B),503.42
2044275,Comensura Ltd,20101213,53102,Agency Staff  Other,Finance Department,C.R.M. Operations,"5,345.91"
2044275,Comensura Ltd,20101213,53102,Agency Staff  Other,Finance Department,Financial Management,890.57
2044275,Comensura Ltd,20101213,53102,Agency Staff  Other,Finance Department,Oracle Support Team,"1,401.05"
2044275,Comensura Ltd,20101213,53102,Agency Staff  Other,Development & Regen,Addressing Worklessness,"1,370.60"
2044275,Comensura Ltd,20101213,53102,Agency Staff  Other,Property Services,Operational Facilities Management,"1,184.51"
2044275,Comensura Ltd,20101213,53102,Agency Staff  Other,Property Services,Projects,681.75
2051184,Community Care Options#3,20101220,52200,Contracted Services,Adult Services,LD Purchaser Residential Care,"120,214.58"
2048721,Community Care Options#3,20101216,52200,Contracted Services,Adult Services,PD Purcahser Domiciliary Care,850.50
2051181,Community Care Options#3,20101220,52200,Contracted Services,Adult Services,PD Purchaser Supported Housing,"14,607.95"
2048754,Community Care Options#3,20101216,52200,Contracted Services,Adult Services,PD Purcahser Domiciliary Care,"1,579.50"
2048446,Community Care Options#3,20101216,52200,Contracted Services,Adult Services,PD Purchaser Supported Housing,"14,607.95"
2048741,Community Care Options#3,20101216,52200,Contracted Services,Adult Services,PD Purcahser Domiciliary Care,996.30
2043578,Community Care Options#3,20101209,52200,Contracted Services,Adult Services,LD Purchaser Residential Care,"1,105.08"
2048946,Community Care Options#3,20101216,52200,Contracted Services,Adult Services,LD Purchaser Residential Care,"120,214.58"
2053448,Complete Maintenance and Facilities Management,20101223,26101,Contract Cleaning,Development & Regen,REDD BEC Basement O/H,799.10
2056170,Comprehensive Design Architects,20101230,48509,Other Fees,Development & Regen,Project Revenue Account,"2,790.00"
2051566,Connaught Compliance  Services Ltd,20101220,19100,Training Exps Tuition Fees,Property Services,Business Support,"5,037.50"
2055381,Cornerstone Trust,20101223,52200,Contracted Services,Adult Services,LD Purchaser Supported Housing,"9,662.72"
2039357,Cornerstone Trust,20101207,54301,Residential Provision,Adult Services,LD Purchaser Residential Care,"18,540.00"
2053865,Country Landscapes,20101223,Z1051,Work in Progress Additions,Housing Revenue Account,Capital  HRA,"2,693.00"
2038222,Coutts Information Services Ltd,20101220,40753,Book Fund Expenditure,Adult Services,Libraries  Resources,"1,287.90"
2038225,Coutts Information Services Ltd,20101220,40753,Book Fund Expenditure,Adult Services,Libraries  Resources,"1,275.62"
2037308,Craven Roofing Contractors,20101223,20100,Day To Day Maintenance,Central Corporate,Tonge Bridge,"2,156.45"
2045936,Craven Roofing Contractors,20101223,20100,Day To Day Maintenance,Central Corporate,Bolton Enterprise Centre,"6,640.00"
2049141,Craven Roofing Contractors,20101230,Z1051,Work in Progress Additions,Property Services,Property Services Balance Sheet,960.00
2049075,Creative Support Ltd#3,20101216,52200,Contracted Services,Adult Services,OA  Home Care Services external provision,"21,680.26"
2049074,Creative Support Ltd#3,20101216,52200,Contracted Services,Adult Services,OA  Home Care Services external provision,"20,984.30"
2045222,Creative Support Ltd#3,20101213,52200,Contracted Services,Adult Services,MH Management,"7,966.75"
2055953,Criminal Records Bureau#CRB,20101223,19400,Disclosure Monitoring,Chief Executives Department,Licensing (Client),"1,944.00"
2053493,Criminal Records Bureau#CRB,20101223,19400,Disclosure Monitoring,Chief Executives Department,HR  Resourcing & Policy,"12,708.00"
2056974,Crossroads Care Bolton#BRISC,20101230,52200,Contracted Services,Adult Services,OA  Home Care Services external provision,"24,842.68"
2045177,Crossroads Care Bolton#BRISC,20101213,52200,Contracted Services,Adult Services,OA  Carers Grant,935.64
2050113,Crossroads Care Bolton#BRISC,20101220,52001,Vol Sect Grants  Misc,Children's Services,Disability Serv External Provision,546.75
2050112,Crossroads Care Bolton#BRISC,20101220,52001,Vol Sect Grants  Misc,Children's Services,Disability Serv External Provision,749.25
2056988,Crowness Kennels & Cattery,20101230,52300,Client Support Costs,Adult Services,OA  External Provision Residential,850.00
2056987,Crowness Kennels & Cattery,20101230,52300,Client Support Costs,Adult Services,OA  External Provision Residential,504.90
2056986,Crowness Kennels & Cattery,20101230,52300,Client Support Costs,Adult Services,OA  External Provision Residential,567.00
2056985,Crowness Kennels & Cattery,20101230,52300,Client Support Costs,Adult Services,OA  External Provision Residential,667.00
2039831,D K Scholes T/A Best/Scholes Dental,20101206,93120,Refunds,Environmental Services,Waste,547.62
2040759,D Ratcliffe Plumbing & Heating Ltd,20101209,Z1051,Work in Progress Additions,Housing GRF,Capital  General Fund,"2,552.11"
2040763,D Ratcliffe Plumbing & Heating Ltd,20101209,Z1051,Work in Progress Additions,Housing GRF,Capital  General Fund,"4,876.00"
2051200,Dataspace,20101220,48506,Records Storage,Central Services,Corporate Information Team,"3,109.08"
2051200,Dataspace,20101220,48506,Records Storage,Legal Trading,Legal Services Trading Account,"3,109.08"
2040078,DBD Mechanical & Electrical Building Services,20101206,52200,Contracted Services,Property Services,Projects,"2,984.59"
2039893,Deane Pharmacy,20101206,52200,Contracted Services,Adult Services,Drugs Action Team,505.56
2039389,Deanwood Manor Care Home,20101207,54302,Nursing Provision,Adult Services,OA  External Provision Residential,"1,332.88"
2055172,Delaware Communications Plc,20101223,20100,Day To Day Maintenance,Housing Revenue Account,HRA South,"1,342.60"
2055263,Delaware Communications Plc,20101223,20100,Day To Day Maintenance,Housing Revenue Account,HRA North,"1,489.00"
2055200,Delaware Communications Plc,20101223,Z1051,Work in Progress Additions,Housing Revenue Account,Capital  HRA,"17,876.00"
2055182,Delaware Communications Plc,20101223,20100,Day To Day Maintenance,Housing Revenue Account,HRA North,890.50
2055215,Delaware Communications Plc,20101223,20100,Day To Day Maintenance,Housing Revenue Account,HRA South,"1,009.90"
2055191,Delaware Communications Plc,20101223,20100,Day To Day Maintenance,Housing Revenue Account,HRA South,664.50
2044086,Dell Corporation Ltd,20101230,45400,Computer Purchase,Children's Services,Admin IT (Schools),"22,000.00"
2050947,Dell Corporation Ltd,20101230,45400,Computer Purchase,Children's Services,Admin IT (Schools),618.10
2037615,Denis Rawlins Limited,20101223,40100,Operational Equipment Purchase,Environmental Services,Building Cleaning,"1,345.25"
2039895,Diamond Healthcare (NW) Ltd#Derby Street Pharmacy,20101206,52200,Contracted Services,Adult Services,Drugs Action Team,885.55
2039377,Dolphinlee House,20101207,54301,Residential Provision,Adult Services,OA  External Provision Residential,"1,866.00"
2039393,Douglas Bank Nursing Home#Tudor Bank Ltd,20101207,54302,Nursing Provision,Adult Services,OA  External Provision Residential,"1,903.40"
2039375,Dove Court Residential & Nursing Home,20101207,54301,Residential Provision,Adult Services,OA  External Provision Residential,"1,462.00"
2048660,Dove Marketing,20101223,44051,Clients Aids & Adaptations,Adult Services,ASC External Funded Schemes,502.68
2039392,Downshaw Lodge,20101207,54302,Nursing Provision,Adult Services,OA  External Provision Residential,"1,803.16"
2038700,Drs. Direct Ltd#Bibby Factors Leicester Limited,20101206,53100,Agency Staff  Fulltime,Chief Executives Department,Personnel Svs Occ Health Unit,900.00
2038704,Drs. Direct Ltd#Bibby Factors Leicester Limited,20101206,53100,Agency Staff  Fulltime,Chief Executives Department,Personnel Svs Occ Health Unit,900.00
2038734,Drs. Direct Ltd#Bibby Factors Leicester Limited,20101206,53100,Agency Staff  Fulltime,Chief Executives Department,Personnel Svs Occ Health Unit,900.00
2053841,Drs. Direct Ltd#Bibby Factors Leicester Limited,20101223,53100,Agency Staff  Fulltime,Chief Executives Department,Personnel Svs Occ Health Unit,900.00
2053842,Drs. Direct Ltd#Bibby Factors Leicester Limited,20101223,53100,Agency Staff  Fulltime,Chief Executives Department,Personnel Svs Occ Health Unit,900.00
2053845,Drs. Direct Ltd#Bibby Factors Leicester Limited,20101223,53100,Agency Staff  Fulltime,Chief Executives Department,Personnel Svs Occ Health Unit,900.00
2038738,Drs. Direct Ltd#Bibby Factors Leicester Limited,20101206,53100,Agency Staff  Fulltime,Chief Executives Department,Personnel Svs Occ Health Unit,900.00
2055592,DS Building Services UK Ltd,20101223,44051,Clients Aids & Adaptations,Adult Services,AD ICES,723.07
2048503,DS Building Services UK Ltd,20101216,44051,Clients Aids & Adaptations,Adult Services,ASC External Funded Schemes,902.00
2054136,Dunnes Travel Services#DTS,20101223,34402,Clients  Taxi Fares,Environmental Services,Social Needs Transport,972.00
2039728,Dunnes Travel Services#DTS,20101206,34402,Clients  Taxi Fares,Environmental Services,Social Needs Transport,"1,782.00"
2039826,Dunscar Golf Club Ltd,20101206,93120,Refunds,Environmental Services,Waste,934.88
2050049,Dutton Tech Consulting#Andrew Dutton,20101216,53100,Agency Staff  Fulltime,Children's Services,Technical Innovation Centre,553.68
2037050,Earls Farm Cattery,20101213,52300,Client Support Costs,Adult Services,PD Purchaser Residential Care,624.00
2056980,Easycare Ltd,20101230,52200,Contracted Services,Adult Services,OA  Home Care Services external provision,"19,248.87"
2048667,Easylink UK,20101223,44051,Clients Aids & Adaptations,Adult Services,AD Equipment,527.71
2048472,Eccles Construction,20101216,20100,Day To Day Maintenance,Central Corporate,Land & Property,535.48
2048488,Eccles Construction,20101216,20100,Day To Day Maintenance,Central Corporate,Land & Property,550.94
2046504,Education Support Professionals,20101230,53102,Agency Staff  Other,Children's Services,Admin IT (Schools),"1,032.75"
2039344,Ellershaw House Ltd,20101207,54301,Residential Provision,Adult Services,LD Purchaser Residential Care,"9,098.36"
2049519,EMB Consultants Ltd,20101216,Z1051,Work in Progress Additions,Environmental Services,Environmental Services Balance sheet,"2,000.00"
2054041,Emo Oil Ltd#Was Shell Oil,20101223,21203,Fuel Oil  General,Environmental Services,Depots,"1,200.60"
2040075,Engineering Service Co,20101206,Z1051,Work in Progress Additions,Adult Services,Adult Services Balance Sheet,507.23
2043580,Entertainment Trade Mgt Agencies Ltd,20101209,48501,Artistes Fees,Adult Services,Albert Halls  Entertainments,"1,376.99"
2048974,Entertainment Trade Mgt Agencies Ltd,20101216,48501,Artistes Fees,Adult Services,Albert Halls  Entertainments,"5,000.00"
2037066,Environmental Essentials,20101202,20100,Day To Day Maintenance,Housing Revenue Account,HRA South,"8,149.00"
2037070,Environmental Essentials,20101202,Z1051,Work in Progress Additions,Housing Revenue Account,Capital  HRA,"2,398.00"
2037070,Environmental Essentials,20101202,20100,Day To Day Maintenance,Housing Revenue Account,HRA South,"12,682.00"
2039336,Epworth Grange,20101207,54301,Residential Provision,Adult Services,OA  External Provision Residential,"1,583.56"
2054139,Euro Minibuses,20101223,34402,Clients  Taxi Fares,Environmental Services,Social Needs Transport,"1,944.00"
2039731,Euro Minibuses,20101206,34402,Clients  Taxi Fares,Environmental Services,Social Needs Transport,"3,564.00"
2053887,European Wellcare LIFESTYLES Ltd,20101223,54301,Residential Provision,Adult Services,LD Purchaser Residential Care,"13,967.42"
2056172,Experian Limited#T/A Footfall Ltd,20101230,48631,Office Expenses  General,Finance Department,Council Tax,"3,364.50"
2039403,Fairholme Nursing Home,20101207,54302,Nursing Provision,Adult Services,OA  External Provision Residential,"1,500.00"
2051381,Family Forensic Psychology Service Ltd,20101220,48509,Other Fees,Children's Services,Management Team,761.40
2055162,Fencelines Ltd,20101223,40102,Operational Equipment Rental,Environmental Services,Greenspace,710.00
2046125,First Call Community Systems Ltd t/a SureCare,20101213,52200,Contracted Services,Adult Services,OA  Home Care Services external provision,"39,227.54"
2038869,Firstcall Healthcare#Passhall Ltd,20101206,52200,Contracted Services,Adult Services,OA  Home Care Services external provision,"67,734.80"
2056977,Firstcall Healthcare#Passhall Ltd,20101230,52200,Contracted Services,Adult Services,OA  Home Care Services external provision,"64,517.72"
2037403,Fools Paradise Ltd,20101223,48203,Marketing,Central Services,Marketing  Development (J),"1,780.00"
2053393,Forensics Ltd#ROAR,20101223,48549,CoronersToxicology/Histology tests,Central Corporate,Coroners,"1,260.00"
2056939,Fortalice Ltd,20101230,52200,Contracted Services,Children's Services,Youth Serv Voluntary Organisations,"8,127.50"
2055984,Fortalice Ltd,20101223,52200,Contracted Services,Children's Services,Family Support Contract prov'n.,"7,993.30"
2048402,Foster CARES Ltd#RBS Invoice Finance Ltd,20101223,52000,Vol Assoc Grants  General,Children's Services,Res Serv Agency Placements,770.00
2048403,Foster CARES Ltd#RBS Invoice Finance Ltd,20101223,52000,Vol Assoc Grants  General,Children's Services,Res Serv Agency Placements,770.00
2048406,Foster CARES Ltd#RBS Invoice Finance Ltd,20101223,52000,Vol Assoc Grants  General,Children's Services,Res Serv Agency Placements,938.40
2056040,Foster CARES Ltd#RBS Invoice Finance Ltd,20101230,52000,Vol Assoc Grants  General,Children's Services,Res Serv Agency Placements,938.40
2056044,Foster CARES Ltd#RBS Invoice Finance Ltd,20101230,52000,Vol Assoc Grants  General,Children's Services,Res Serv Agency Placements,770.00
2056048,Foster CARES Ltd#RBS Invoice Finance Ltd,20101230,52000,Vol Assoc Grants  General,Children's Services,Res Serv Agency Placements,770.00
2056069,Fostering Solutions Ltd#2,20101230,52000,Vol Assoc Grants  General,Children's Services,Res Serv Agency Placements,"2,990.26"
2056076,Fostering Solutions Ltd#2,20101230,52000,Vol Assoc Grants  General,Children's Services,Res Serv Agency Placements,"3,537.10"
2056067,Fostering Solutions Ltd#2,20101230,52000,Vol Assoc Grants  General,Children's Services,Res Serv Agency Placements,"2,990.26"
2056068,Fostering Solutions Ltd#2,20101230,52000,Vol Assoc Grants  General,Children's Services,Res Serv Agency Placements,"2,990.26"
2056070,Fostering Solutions Ltd#2,20101230,52000,Vol Assoc Grants  General,Children's Services,Res Serv Agency Placements,"3,554.46"
2056074,Fostering Solutions Ltd#2,20101230,52000,Vol Assoc Grants  General,Children's Services,Res Serv Agency Placements,"3,149.91"
2055826,Fostering Solutions Ltd#2,20101223,52000,Vol Assoc Grants  General,Children's Services,Res Serv Agency Placements,"6,109.79"
2056071,Fostering Solutions Ltd#2,20101230,52000,Vol Assoc Grants  General,Children's Services,Res Serv Agency Placements,"3,149.91"
2039293,Four Seasons Nursing Home,20101207,54302,Nursing Provision,Adult Services,LD Purchaser Residential Care,"1,514.64"
2039293,Four Seasons Nursing Home,20101207,54301,Residential Provision,Adult Services,OA  External Provision Residential,"31,807.44"
2039293,Four Seasons Nursing Home,20101207,54302,Nursing Provision,Adult Services,OA  External Provision Residential,"37,684.92"
2039293,Four Seasons Nursing Home,20101207,54301,Residential Provision,Adult Services,PD Purchaser Residential Care,"10,315.86"
2056051,Fujitsu Services Limited,20101230,45613,Fujitsu  Managed Service,Finance Department,FM Contract,"662,468.74"
2039756,G4S Cash Solutions,20101206,44402,Security Cash Collection,Finance Department,CSD Cashiers,"6,674.34"
2055982,G4S Cash Solutions,20101230,44402,Security Cash Collection,Finance Department,CSD Cashiers,"6,570.05"
2048854,Gag Reflex Ltd,20101216,48501,Artistes Fees,Adult Services,Albert Halls  Entertainments,782.00
2040742,Gas Appliance Services,20101209,Z1051,Work in Progress Additions,Housing GRF,Capital  General Fund,851.06
2051593,Gaskell McDowall Construction,20101220,Z1051,Work in Progress Additions,Property Services,Property Services Balance Sheet,"92,788.63"
2054986,Gibsons Joiners & Builders Ltd,20101223,Z1051,Work in Progress Additions,Housing Revenue Account,Capital  HRA,"4,509.00"
2053940,Gibsons Joiners & Builders Ltd,20101223,Z1051,Work in Progress Additions,Housing GRF,Capital  General Fund,"2,140.05"
2049120,Gleeds Building Surveying,20101216,52200,Contracted Services,Property Services,Projects,"3,626.73"
2053894,Gleeds Building Surveying,20101223,52200,Contracted Services,Property Services,Projects,"5,335.81"
2039294,Glenbank Care Home Ltd,20101207,54301,Residential Provision,Adult Services,OA  External Provision Residential,"21,131.92"
2039294,Glenbank Care Home Ltd,20101207,54301,Residential Provision,Adult Services,PD Purchaser Residential Care,"1,493.52"
2039340,Glenhomes Rest Home,20101207,54301,Residential Provision,Adult Services,OA  External Provision Residential,"12,737.16"
2045139,Glow New Media Ltd,20101213,48509,Other Fees,Adult Services,Mus & Archives North West Hub,"2,400.00"
2045143,Glow New Media Ltd,20101213,48509,Other Fees,Adult Services,Mus & Archives North West Hub,"2,400.00"
2037404,GMPTE#Greater Manchester Passenger Transport Exec,20101223,40102,Operational Equipment Rental,Development & Regen,REDD Town Centre Coord Projects,"7,962.00"
2052990,GMS Services Limited,20101223,20102,Health & Safety,Property Services,Annual Charge Holding Account,"3,330.00"
2049131,GMS Services Limited,20101216,20102,Health & Safety,Property Services,Annual Charge Holding Account,"2,655.00"
2049064,Goldsborough Home Care,20101216,52200,Contracted Services,Adult Services,OA  Home Care Services external provision,"14,074.42"
2055036,Good People Services Limited,20101223,53100,Agency Staff  Fulltime,Development & Regen,Coalfields,"2,050.00"
2055031,Good People Services Limited,20101223,48510,Consultancy Fees,Development & Regen,REDD ES Projects,"1,050.00"
2056262,Good People Services Limited,20101230,53100,Agency Staff  Fulltime,Development & Regen,Addressing Worklessness,987.50
2056262,Good People Services Limited,20101230,53100,Agency Staff  Fulltime,Development & Regen,Coalfields,987.50
2055033,Good People Services Limited,20101223,48510,Consultancy Fees,Development & Regen,REDD ES Projects,750.00
2055037,Good People Services Limited,20101223,48510,Consultancy Fees,Development & Regen,REDD ES Projects,"2,800.00"
2055041,Good People Services Limited,20101223,48510,Consultancy Fees,Development & Regen,REDD ES Projects,"1,500.00"
2043586,Good People Services Limited,20101209,53100,Agency Staff  Fulltime,Development & Regen,Addressing Worklessness,"1,975.00"
2039296,Gorsey Clough Nursing Home Ltd,20101207,54301,Residential Provision,Adult Services,OA  External Provision Residential,"5,033.46"
2039296,Gorsey Clough Nursing Home Ltd,20101207,54302,Nursing Provision,Adult Services,OA  External Provision Residential,"14,252.04"
2039295,Gorsey Clough Nursing Home Ltd,20101207,54302,Nursing Provision,Adult Services,OA  External Provision Residential,"7,748.13"
2039298,Grange Lea Residential Care Home Ltd,20101207,54301,Residential Provision,Adult Services,OA  External Provision Residential,"25,471.20"
2055042,Great Lever Builders,20101223,Z1051,Work in Progress Additions,Housing GRF,Capital  General Fund,"10,138.00"
2044594,Greater Manchester Industrial Mission Trust,20101213,55700,Grant Funded Expenditure,Special Funding,ABG Projects,"13,132.86"
2040571,Greenlands Residential Home#Mra A Khan & Mrs S Hussain2,20101207,54301,Residential Provision,Adult Services,OA  External Provision Residential,"19,746.48"
2041914,Grosvenor Fresh Foods,20101222,41101,Catering ProvisionsFood,Environmental Services,Catering,587.37
2054117,Gulzar Khan T/A Bolton Black Cab,20101223,34402,Clients  Taxi Fares,Environmental Services,Social Needs Transport,641.25
2039164,Gulzar Khan T/A Bolton Black Cab,20101206,34402,Clients  Taxi Fares,Environmental Services,Social Needs Transport,940.50
2039323,Haighfield Nursing Home,20101207,54302,Nursing Provision,Adult Services,OA  External Provision Residential,"1,494.08"
2039368,Half Acre Care Centre,20101207,54301,Residential Provision,Adult Services,OA  External Provision Residential,"1,543.56"
2057048,Halliwell Befriending Service,20101230,52000,Vol Assoc Grants  General,Adult Services,OA  Day Care Provision  external,"8,408.25"
2039382,Harbour Close,20101207,54301,Residential Provision,Adult Services,PD Purchaser Residential Care,"3,877.88"
2051106,Harmony Youth Project,20101220,52200,Contracted Services,Children's Services,Youth Serv Voluntary Organisations,"6,115.50"
2052208,Harmony Youth Project,20101220,44059,Educational Visits,Central Corporate,Valuing Diversity Working Party,"1,000.00"
2044083,Hart Psychological Consulting,20101209,48509,Other Fees,Children's Services,Management Team,761.25
2040737,Harwood Heating Services Ltd,20101209,Z1051,Work in Progress Additions,Housing GRF,Capital  General Fund,"2,553.18"
2054143,Haslams Private Hire,20101223,34402,Clients  Taxi Fares,Environmental Services,Social Needs Transport,750.00
2039732,Haslams Private Hire,20101206,34402,Clients  Taxi Fares,Environmental Services,Social Needs Transport,"1,320.00"
2039395,Haylands Residential Home,20101207,54301,Residential Provision,Adult Services,OA  External Provision Residential,"1,481.92"
2039341,Hazelbrook Christian Nursing Home,20101207,54301,Residential Provision,Adult Services,OA  External Provision Residential,"7,284.03"
2039341,Hazelbrook Christian Nursing Home,20101207,54302,Nursing Provision,Adult Services,OA  External Provision Residential,"5,900.51"
2046657,Heineken UK Limited#Pay EH54 8AG,20101223,41106,Bar Stock,Adult Services,Civic Catering Town Hall Bar,"1,129.93"
2053511,Heineken UK Limited#Pay EH54 8AG,20101223,41106,Bar Stock,Adult Services,Civic Catering Town Hall Bar,"1,193.46"
2052307,Hencewell,20101220,48509,Other Fees,Children's Services,Management Team,"1,088.00"
2039299,Henshaws Society For The Blind,20101207,54301,Residential Provision,Adult Services,PD Purchaser Residential Care,"2,946.72"
2040724,Herbert T Forrest Ltd,20101209,Z1051,Work in Progress Additions,Housing Revenue Account,Capital  HRA,"26,105.59"
2037097,Herbert T Forrest Ltd,20101202,Z1051,Work in Progress Additions,Housing Revenue Account,Capital  HRA,"12,079.87"
2040725,Herbert T Forrest Ltd,20101209,Z1051,Work in Progress Additions,Housing Revenue Account,Capital  HRA,"21,531.21"
2040711,Herbert T Forrest Ltd,20101209,Z1051,Work in Progress Additions,Housing Revenue Account,Capital  HRA,"14,612.95"
2056383,Herbert T Forrest Ltd,20101230,Z1051,Work in Progress Additions,Housing Revenue Account,Capital  HRA,"23,613.22"
2056380,Herbert T Forrest Ltd,20101230,Z1051,Work in Progress Additions,Housing Revenue Account,Capital  HRA,"24,439.03"
2056377,Herbert T Forrest Ltd,20101230,Z1051,Work in Progress Additions,Housing Revenue Account,Capital  HRA,"1,715.88"
2056375,Herbert T Forrest Ltd,20101230,Z1051,Work in Progress Additions,Housing Revenue Account,Capital  HRA,604.69
2040727,Herbert T Forrest Ltd,20101209,Z1051,Work in Progress Additions,Housing Revenue Account,Capital  HRA,"7,036.09"
2056384,Herbert T Forrest Ltd,20101230,Z1051,Work in Progress Additions,Housing Revenue Account,Capital  HRA,"14,612.95"
2056382,Herbert T Forrest Ltd,20101230,Z1051,Work in Progress Additions,Housing Revenue Account,Capital  HRA,"7,477.14"
2055370,Herbert T Forrest Ltd,20101223,Z1051,Work in Progress Additions,Housing Revenue Account,Capital  HRA,"21,680.15"
2037095,Herbert T Forrest Ltd,20101202,Z1051,Work in Progress Additions,Housing Revenue Account,Capital  HRA,"59,377.73"
2037093,Herbert T Forrest Ltd,20101202,Z1051,Work in Progress Additions,Housing Revenue Account,Capital  HRA,"35,150.97"
2056166,Herbert T Forrest Ltd,20101230,Z1051,Work in Progress Additions,Housing Revenue Account,Capital  HRA,"12,272.62"
2039371,Highfield Hall Care Centre,20101207,54301,Residential Provision,Adult Services,OA  External Provision Residential,"3,618.00"
2039388,Highfiled House Care Home#Factor Dhillon Financila Services (UK) Ltd,20101207,54301,Residential Provision,Adult Services,OA  External Provision Residential,"1,378.00"
2039321,Hillcrest,20101207,54301,Residential Provision,Adult Services,OA  External Provision Residential,"1,650.36"
2040744,Hillserve Limited,20101209,Z1051,Work in Progress Additions,Housing GRF,Capital  General Fund,"6,526.24"
2038227,Hilmay Hygiene Supplies Ltd,20101223,26000,Cleaning Materials,Environmental Services,Building Cleaning,877.50
2057045,HMCS#Her Majestys Courts Services,20101230,48509,Other Fees,Children's Services,Management Team,"2,225.00"
2049015,HMCS#Her Majestys Courts Services,20101216,48509,Other Fees,Children's Services,Management Team,"2,225.00"
2049016,HMCS#Her Majestys Courts Services,20101216,48509,Other Fees,Children's Services,Management Team,"2,225.00"
2044090,HMCS#Her Majestys Courts Services,20101209,48509,Other Fees,Children's Services,Management Team,"1,900.00"
2057017,HMCS#Her Majestys Courts Services,20101230,48509,Other Fees,Children's Services,Management Team,700.00
2057018,HMCS#Her Majestys Courts Services,20101230,48509,Other Fees,Children's Services,Management Team,700.00
2057019,HMCS#Her Majestys Courts Services,20101230,48509,Other Fees,Children's Services,Management Team,"1,900.00"
2057043,HMCS#Her Majestys Courts Services,20101230,48509,Other Fees,Children's Services,Management Team,"2,225.00"
2057044,HMCS#Her Majestys Courts Services,20101230,48509,Other Fees,Children's Services,Management Team,"2,225.00"
2039304,Hollands Nursing Home,20101207,54301,Residential Provision,Adult Services,MH Residential External Provision,"3,606.88"
2039304,Hollands Nursing Home,20101207,54302,Nursing Provision,Adult Services,MH Residential External Provision,"4,887.04"
2039304,Hollands Nursing Home,20101207,54301,Residential Provision,Adult Services,OA  External Provision Residential,"5,120.64"
2039304,Hollands Nursing Home,20101207,54301,Residential Provision,Adult Services,PD Purchaser Residential Care,"14,154.01"
2039304,Hollands Nursing Home,20101207,54302,Nursing Provision,Adult Services,PD Purchaser Residential Care,"7,425.52"
2040573,Holtwood House#Factor ARC Adventure (Bury) Ltd,20101207,54301,Residential Provision,Adult Services,LD Purchaser Residential Care,"8,241.80"
2053990,Holtwood House#Factor ARC Adventure (Bury) Ltd,20101223,52000,Vol Assoc Grants  General,Children's Services,Disability Serv External Provision,"11,673.09"
2056979,Home Care For You Ltd,20101230,52200,Contracted Services,Adult Services,OA  Home Care Services external provision,"23,761.32"
2040577,Homelea Residential Care Home,20101207,54301,Residential Provision,Adult Services,OA  External Provision Residential,"1,763.16"
2043585,Humayun Cabs#Humayun Zafar,20101209,34402,Clients  Taxi Fares,Environmental Services,Social Needs Transport,898.20
2056899,Humayun Cabs#Humayun Zafar,20101230,34402,Clients  Taxi Fares,Environmental Services,Social Needs Transport,501.30
2039901,Hunt & Marsden (Bolton) Ltd,20101206,52200,Contracted Services,Adult Services,Drugs Action Team,716.62
2039903,Hunt & Marsden (Bolton) Ltd,20101206,52200,Contracted Services,Adult Services,Drugs Action Team,674.08
2039291,Hyde  Lea,20101207,54301,Residential Provision,Adult Services,LD Purchaser Residential Care,"1,493.52"
2039291,Hyde  Lea,20101207,54301,Residential Provision,Adult Services,OA  External Provision Residential,"8,037.00"
2054151,I K Cars#Iqbal Vali Kola,20101223,34402,Clients  Taxi Fares,Environmental Services,Social Needs Transport,722.08
2039737,I K Cars#Iqbal Vali Kola,20101206,34402,Clients  Taxi Fares,Environmental Services,Social Needs Transport,"1,195.68"
2054147,Ian Rowland#Sentinel,20101223,34402,Clients  Taxi Fares,Environmental Services,Social Needs Transport,"1,012.50"
2045739,Ian Rowland#Sentinel,20101213,34402,Clients  Taxi Fares,Environmental Services,Social Needs Transport,"1,782.00"
2039734,Iftikhar Cab#Iftikhar Ahmed,20101206,34402,Clients  Taxi Fares,Environmental Services,Social Needs Transport,692.44
2051507,Iken Business Ltd,20101220,45431,Computer Software Licences,Central Services,Director of Chief Executives Dept.,600.00
2048359,Independent Childcare Group of Schools Ltd#advanced childcare,20101223,52000,Vol Assoc Grants  General,Children's Services,Res Serv Agency Placements,"21,407.10"
2055701,Information & Data Network Supplies Ltd#IDN,20101223,93120,Refunds,Environmental Services,Waste,633.29
2043658,Innov8 Safety Solutions Limited,20101209,52200,Contracted Services,Property Services,Projects,780.00
2051210,Intech Ltd,20101220,93120,Refunds,Environmental Services,Waste,626.33
2054154,Ismail Patel#Ladybridge Private Hire,20101223,34402,Clients  Taxi Fares,Environmental Services,Social Needs Transport,"2,141.10"
2039739,Ismail Patel#Ladybridge Private Hire,20101206,34402,Clients  Taxi Fares,Environmental Services,Social Needs Transport,"3,373.20"
2043557,J & B Investments,20101209,22003,Ground Rent,Central Corporate,Land & Property,"1,750.00"
2040734,J & L Prince Builders,20101209,Z1051,Work in Progress Additions,Housing GRF,Capital  General Fund,"21,552.55"
2044800,J A Grundy & Sons,20101213,Z1051,Work in Progress Additions,Housing GRF,Capital  General Fund,963.50
2053373,J Dickinson & Sons (Horwich) Ltd#2,20101223,53000,Private Contracted Services,Environmental Services,Streets & Grounds,559.48
2048345,J Dickinson & Sons (Horwich) Ltd#2,20101216,Z6008,Expense AP Accrual,Bolton MBC Balance Sheet,Bolton MBC Balance Sheet,"1,215.93"
2043512,J Dickinson & Sons (Horwich) Ltd#2,20101209,55600,WDA Paper Recycling,Financial Services,Waste Disposal,"1,020.00"
2055294,J Dickinson & Sons (Horwich) Ltd#2,20101223,20501,Engineering Work,Environmental Services,Highway Works  Unallocated Costs,716.12
2055791,J Dickinson & Sons (Horwich) Ltd#2,20101223,26105,Env Cleaning,Special Funding,Neighbourhood Management,658.96
2048437,J Dickinson & Sons (Horwich) Ltd#2,20101216,Z6008,Expense AP Accrual,Bolton MBC Balance Sheet,Bolton MBC Balance Sheet,602.65
2048349,J Dickinson & Sons (Horwich) Ltd#2,20101216,Z6008,Expense AP Accrual,Bolton MBC Balance Sheet,Bolton MBC Balance Sheet,876.59
2043513,J Dickinson & Sons (Horwich) Ltd#2,20101209,55600,WDA Paper Recycling,Financial Services,Waste Disposal,"1,509.68"
2040353,J Dickinson & Sons (Horwich) Ltd#2,20101209,20100,Day To Day Maintenance,Environmental Services,Markets  Rent Account,"6,194.50"
2040350,J Dickinson & Sons (Horwich) Ltd#2,20101209,26106,Refuse Collection,Environmental Services,Markets  Rent Account,762.10
2055301,J Dickinson & Sons (Horwich) Ltd#2,20101223,20501,Engineering Work,Environmental Services,Highway Works  Unallocated Costs,"2,709.63"
2053884,J G Redford Ltd,20101223,Z1051,Work in Progress Additions,Housing GRF,Capital  General Fund,"2,712.00"
2053589,J G Redford Ltd,20101223,Z1051,Work in Progress Additions,Housing Revenue Account,Capital  HRA,"4,373.00"
2055390,J G Redford Ltd,20101223,Z1051,Work in Progress Additions,Housing Revenue Account,Capital  HRA,"3,230.00"
2040995,J H Advertising Ltd,20101209,40750,Text Books,Children's Services,Music ServMusic Service general,"1,587.00"
2050551,J Hopkins (Contractors) Ltd,20101220,Z1051,Work in Progress Additions,Highways,Stores,"30,179.22"
2051597,J Phillips & Sons Ltd#1,20101220,52200,Contracted Services,Property Services,Projects,"25,103.30"
2049225,J Phillips & Sons Ltd#1,20101216,20100,Day To Day Maintenance,Adult Services,Libraries  Horwich,"1,120.00"
2054375,Jack Smith & Sons Ltd,20101223,Z1051,Work in Progress Additions,Housing GRF,Capital  General Fund,"4,027.05"
2054352,Jack Smith & Sons Ltd,20101223,Z1051,Work in Progress Additions,Housing GRF,Capital  General Fund,"25,108.74"
2040731,Jack Smith & Sons Ltd,20101209,Z1051,Work in Progress Additions,Housing GRF,Capital  General Fund,"5,799.77"
2040730,Jack Smith & Sons Ltd,20101209,Z1051,Work in Progress Additions,Housing GRF,Capital  General Fund,"2,083.21"
2053891,Jack Smith & Sons Ltd,20101223,Z1051,Work in Progress Additions,Housing GRF,Capital  General Fund,"4,301.68"
2040578,Jah Jireh (Leyland),20101207,54301,Residential Provision,Adult Services,OA  External Provision Residential,"1,556.00"
2039353,Jah-Jireh (Blackpool),20101207,54301,Residential Provision,Adult Services,OA  External Provision Residential,"1,498.96"
2037413,Japanese Knotweed Solutions Limited,20101206,20100,Day To Day Maintenance,Housing Revenue Account,R & M  Horwich,"4,500.00"
2037411,Japanese Knotweed Solutions Limited,20101206,20100,Day To Day Maintenance,Housing Revenue Account,R & M  Horwich,"7,500.00"
2050276,Jo Hossle-Standring T/a Jorchid,20101220,53100,Agency Staff  Fulltime,Chief Executives Department,Personnel Svs Occ Health Unit,"1,300.00"
2057063,John Packer Ltd,20101230,48629,Miscellaneous Expenses,Children's Services,Music ServMusic Centre,"2,148.00"
2057061,John Packer Ltd,20101230,40150,Office Furniture Purchase,Children's Services,Music ServInstru & Vocal Teach,"1,074.00"
2038186,John Packer Ltd,20101206,40150,Office Furniture Purchase,Children's Services,Music ServInstru & Vocal Teach,804.00
2049100,Just For Laughs Live Ltd,20101230,48501,Artistes Fees,Adult Services,Albert Halls  Entertainments,"4,505.02"
2053325,Just One Recruitment & Training Ltd,20101223,52000,Vol Assoc Grants  General,Children's Services,Res Serv Agency Placements,564.00
2048290,KCOM Group PLC,20101223,Z1051,Work in Progress Additions,Property Services,Property Services Balance Sheet,"4,076.79"
2050234,Keep Britain Tidy#Prev Encams,20101220,48203,Marketing,Environmental Services,Streets & Grounds,600.00
2039332,Kenyon Lodge,20101207,54301,Residential Provision,Adult Services,OA  External Provision Residential,"1,329.56"
2057069,Key Traffic Systems Ltd,20101230,45431,Computer Software Licences,Environmental Services,Highway Management,660.00
2053026,Keymen Associates Ltd#Mayday,20101223,52200,Contracted Services,Adult Services,OA  Home Care Services external provision,"40,385.93"
2051262,Kippax Beaumont & Lewis Solicitors,20101220,48502,Legal Fees,Central Corporate,Land & Property,800.00
2039342,Knightswood Residential Home,20101207,54301,Residential Provision,Adult Services,OA  External Provision Residential,"16,793.13"
2055359,KPMG LLP,20101223,48519,External Audit Fees,Finance Department,Financial Management,"6,290.00"
2040740,Kwik Plumb Maintenance Ltd,20101209,Z1051,Work in Progress Additions,Housing GRF,Capital  General Fund,851.06
2039300,Ladymead Nursing Home#Factor Icon Healthcare (UK) Limited,20101207,54301,Residential Provision,Adult Services,OA  External Provision Residential,746.76
2039301,Ladymead Nursing Home#Factor Icon Healthcare (UK) Limited,20101207,54302,Nursing Provision,Adult Services,LD Purchaser Residential Care,"1,493.52"
2039301,Ladymead Nursing Home#Factor Icon Healthcare (UK) Limited,20101207,54301,Residential Provision,Adult Services,OA  External Provision Residential,"8,961.12"
2039301,Ladymead Nursing Home#Factor Icon Healthcare (UK) Limited,20101207,54302,Nursing Provision,Adult Services,OA  External Provision Residential,"4,068.14"
2039387,Lake View Care Home,20101207,54302,Nursing Provision,Adult Services,OA  External Provision Residential,"3,732.00"
2053410,LAS Manchester Ltd,20101223,47106,Xmas Lights,Central Services,Christmas Lights,"2,840.00"
2039833,Latino Lounge Ltd,20101206,93120,Refunds,Environmental Services,Waste,"1,038.39"
2054157,Less Taxis / Mr L S Garsden,20101223,34402,Clients  Taxi Fares,Environmental Services,Social Needs Transport,"1,093.95"
2039741,Less Taxis / Mr L S Garsden,20101206,34402,Clients  Taxi Fares,Environmental Services,Social Needs Transport,"1,851.30"
2039415,Lever Edge Care Home,20101207,54301,Residential Provision,Adult Services,OA  External Provision Residential,"72,771.62"
2039415,Lever Edge Care Home,20101207,54301,Residential Provision,Adult Services,PD Purchaser Residential Care,"1,514.64"
2039414,Lever Edge Care Home,20101207,54301,Residential Provision,Adult Services,OA  External Provision Residential,"1,601.35"
2048824,LexisNexis UK,20101220,19100,Training Exps Tuition Fees,Finance Department,Payroll,549.00
2048456,Liam Curtin T/A The Art Department,20101216,Z1051,Work in Progress Additions,Development & Regen,Development & Regeneration Capital,"5,000.00"
2040764,Lift Able Limited,20101209,Z1051,Work in Progress Additions,Housing GRF,Capital  General Fund,"1,276.00"
2039324,Limefield Court,20101207,54301,Residential Provision,Adult Services,OA  External Provision Residential,"1,543.56"
2054114,Link Cars,20101223,34402,Clients  Taxi Fares,Environmental Services,Social Needs Transport,"1,120.56"
2039161,Link Cars,20101206,34402,Clients  Taxi Fares,Environmental Services,Social Needs Transport,"2,054.36"
2037545,Lite Ltd,20101223,Z1051,Work in Progress Additions,Development & Regen,Development & Regeneration Capital,625.00
2039408,Little Sisters of the Poor,20101207,54301,Residential Provision,Adult Services,OA  External Provision Residential,"1,629.52"
2039408,Little Sisters of the Poor,20101207,54302,Nursing Provision,Adult Services,OA  External Provision Residential,"1,739.56"
2039914,Lloyds Pharmacy,20101206,52200,Contracted Services,Adult Services,Drugs Action Team,506.38
2040762,Locksafe Window Co,20101209,Z1051,Work in Progress Additions,Housing GRF,Capital  General Fund,"1,739.00"
2039407,Lyndhurst,20101207,54301,Residential Provision,Adult Services,OA  External Provision Residential,"1,519.00"
2039303,Lyngate Residential Home,20101207,54301,Residential Provision,Adult Services,OA  External Provision Residential,"32,173.11"
2039302,Lyngate Residential Home,20101207,54301,Residential Provision,Adult Services,OA  External Provision Residential,"2,686.89"
2056054,Lyreco UK Limited,20101230,43032,Office Stationery,Adult Services,AD Business Development Team,727.99
2040784,M & C Bird Limited,20101209,Z1051,Work in Progress Additions,Housing Revenue Account,Capital  HRA,"14,408.00"
2053084,M J Fowler# Educational Training & Consultancy,20101230,19100,Training Exps Tuition Fees,Children's Services,Educ Admin Training  School Crses,840.00
2038232,Magna Large Print Books,20101220,40753,Book Fund Expenditure,Adult Services,Libraries  Resources,555.72
2038871,Making Space#4,20101206,52200,Contracted Services,Adult Services,OA  Home Care Services external provision,"4,170.92"
2054435,Malcolm Nicholson & Son,20101223,36200,Uninsured Losses  Vehicles,Environmental Services,Transport Support Service,"1,275.32"
2053503,Malcolm Nicholson & Son,20101223,36200,Uninsured Losses  Vehicles,Environmental Services,Transport Support Service,848.49
2054419,Malcolm Nicholson & Son,20101223,36200,Uninsured Losses  Vehicles,Environmental Services,Transport Support Service,867.12
2049956,Malrod Insulations Ltd,20101216,Z1051,Work in Progress Additions,Housing Revenue Account,Capital  HRA,850.00
2048444,Manager Oncall Ltd,20101223,53102,Agency Staff  Other,Adult Services,AD Transforming Social Care,"9,025.00"
2037306,Manchester Light & Stage Ltd,20101223,47106,Xmas Lights,Central Services,Christmas Lights,"3,700.00"
2039384,Manor Care Centre,20101207,54301,Residential Provision,Adult Services,OA  External Provision Residential,"1,684.00"
2039918,Manor Pharmacy#Various Chemists,20101206,52200,Contracted Services,Adult Services,Drugs Action Team,590.23
2039411,Mariana House,20101207,54301,Residential Provision,Adult Services,OA  External Provision Residential,"1,562.16"
2039343,Marley Court  Nursing & Residentail Home,20101207,54301,Residential Provision,Adult Services,OA  External Provision Residential,"6,112.86"
2039921,Marsden Road Pharmacy,20101206,52200,Contracted Services,Adult Services,Drugs Action Team,"1,222.18"
2039923,Marsh T/A Cohens,20101206,52200,Contracted Services,Adult Services,Drugs Action Team,590.64
2050216,Marshalls Mono Limited,20101223,Z1051,Work in Progress Additions,Highways,Stores,"6,667.28"
2050229,Marshalls Mono Limited,20101223,Z1051,Work in Progress Additions,Highways,Stores,"5,450.70"
2038231,Marthall Tree Products Ltd,20101223,40601,General Materials,Environmental Services,Greenspace,607.50
2048436,Marwood Group Limited,20101223,33202,Plant Hire,Environmental Services,Highways Maintenance Billable Costs,"1,400.00"
2039325,Mary & Joseph House,20101207,54301,Residential Provision,Adult Services,MH Residential External Provision,"5,647.08"
2055949,Mather & Stuart Generators Ltd,20101230,Z6008,Expense AP Accrual,Bolton MBC Balance Sheet,Bolton MBC Balance Sheet,872.00
2051525,Maypole Coaches,20101220,34405,Clients  Swimming Fares,Environmental Services,Social Needs Transport,715.50
2055327,Maypole Coaches,20101223,34405,Clients  Swimming Fares,Environmental Services,Social Needs Transport,572.40
2052331,McColl Associates (UK) Limited,20101220,48509,Other Fees,Children's Services,Management Team,"3,970.10"
2039355,Meadow Bank House,20101207,54301,Residential Provision,Adult Services,OA  External Provision Residential,"25,532.50"
2039355,Meadow Bank House,20101207,54302,Nursing Provision,Adult Services,OA  External Provision Residential,"4,543.92"
2039354,Meadow Bank House,20101207,54301,Residential Provision,Adult Services,OA  External Provision Residential,649.13
2044164,Mealey Properties Ltd t/a BM Plumbing & Tiling,20101209,Z1051,Work in Progress Additions,Housing GRF,Capital  General Fund,"3,406.00"
2052324,Mecrow Medical Services Ltd,20101220,48509,Other Fees,Children's Services,Management Team,969.37
2054867,MediaCom North Ltd,20101230,48203,Marketing,Central Services,Marketing  General (N),676.85
2054878,MediaCom North Ltd,20101230,48203,Marketing,Central Services,Marketing  General (N),"1,657.22"
2046550,MediaCom North Ltd,20101220,48203,Marketing,Central Services,Marketing  Development (J),"10,792.67"
2046543,MediaCom North Ltd,20101220,48203,Marketing,Central Services,Marketing  Development (J),"6,095.09"
2054328,Mehboob Valli Patel#SMA Cars,20101223,34402,Clients  Taxi Fares,Environmental Services,Social Needs Transport,760.50
2039778,Mehboob Valli Patel#SMA Cars,20101206,34402,Clients  Taxi Fares,Environmental Services,Social Needs Transport,"1,287.00"
2043517,MGB Plastics Ltd,20101209,Z1051,Work in Progress Additions,Environmental Services,Environmental Services Balance sheet,"3,300.00"
2053430,MGB Plastics Ltd,20101223,Z1051,Work in Progress Additions,Environmental Services,Environmental Services Balance sheet,"9,900.00"
2053427,MGB Plastics Ltd,20101223,48629,Miscellaneous Expenses,Environmental Services,Waste,"7,975.00"
2053139,Midequip Ltd,20101223,44051,Clients Aids & Adaptations,Adult Services,AD ICES,721.28
2049922,Miller Metcalfe,20101216,44054,Other Clients Services,Housing GRF,Access & Advice Home Ownership,625.00
2039362,Millview Nursing Home,20101207,54301,Residential Provision,Adult Services,LD Purchaser Residential Care,"1,493.52"
2039362,Millview Nursing Home,20101207,54301,Residential Provision,Adult Services,OA  External Provision Residential,"70,809.07"
2039362,Millview Nursing Home,20101207,54302,Nursing Provision,Adult Services,OA  External Provision Residential,"50,747.49"
2039362,Millview Nursing Home,20101207,54301,Residential Provision,Adult Services,PD Purchaser Residential Care,"1,493.52"
2039362,Millview Nursing Home,20101207,54302,Nursing Provision,Adult Services,PD Purchaser Residential Care,"1,493.52"
2039361,Millview Nursing Home,20101207,54301,Residential Provision,Adult Services,OA  External Provision Residential,"1,250.88"
2053977,Mint Joinery & Building Ltd,20101223,Z1051,Work in Progress Additions,Housing GRF,Capital  General Fund,"2,065.33"
2053923,Mint Joinery & Building Ltd,20101223,Z1051,Work in Progress Additions,Housing GRF,Capital  General Fund,"3,500.82"
2053967,Mint Joinery & Building Ltd,20101223,Z1051,Work in Progress Additions,Housing GRF,Capital  General Fund,"7,934.67"
2049860,Mitchells & Butlers Retail Ltd#Various Hotels,20101216,Z1051,Work in Progress Additions,Housing Revenue Account,Capital  HRA,809.36
2038191,MK Containers,20101223,40601,General Materials,Environmental Services,Greenspace,"1,148.09"
2038190,MK Containers,20101223,40601,General Materials,Environmental Services,Greenspace,"1,148.09"
2053500,MK Illumination UK Ltd,20101223,20301,Heating & Electrical Purchase,Chief Executives Department,Area Forum Budget,923.75
2050295,MMC Absence and Health Management Ltd,20101220,53100,Agency Staff  Fulltime,Chief Executives Department,Personnel Svs Occ Health Unit,"1,040.00"
2054312,MN Khan t/a Pal Minibuses,20101223,34402,Clients  Taxi Fares,Environmental Services,Social Needs Transport,972.00
2039765,MN Khan t/a Pal Minibuses,20101206,34402,Clients  Taxi Fares,Environmental Services,Social Needs Transport,"1,782.00"
2054134,Mohammad Hanif Mulla#Daubhill Mini Bus,20101223,34402,Clients  Taxi Fares,Environmental Services,Social Needs Transport,905.40
2039726,Mohammad Hanif Mulla#Daubhill Mini Bus,20101206,34402,Clients  Taxi Fares,Environmental Services,Social Needs Transport,"1,544.40"
2052814,Mohammed & Co Solicitors,20101222,Z1051,Work in Progress Additions,Development & Regen,Development & Regeneration Capital,"102,500.00"
2044802,Moorcroft Debt Recovery Ltd,20101220,44054,Other Clients Services,Housing Revenue Account,Housing Revenue Account,665.70
2055625,Morris Quality Bakers,20101223,41101,Catering ProvisionsFood,Environmental Services,Catering,959.41
2057050,Mr A Vali T/A Rapid,20101230,34402,Clients  Taxi Fares,Children's Services,Contact & Direct Work,"1,736.00"
2055324,Mr A Vali T/A Rapid,20101223,34402,Clients  Taxi Fares,Environmental Services,Social Needs Transport,893.70
2056188,Mr A Vali T/A Rapid,20101230,34402,Clients  Taxi Fares,Environmental Services,Social Needs Transport,838.80
2056179,Mr A Vali T/A Rapid,20101230,34402,Clients  Taxi Fares,Environmental Services,Social Needs Transport,959.40
2043581,Mr A Vali T/A Rapid,20101209,34402,Clients  Taxi Fares,Environmental Services,Social Needs Transport,945.00
2054115,Mr B Patel T/A Atlas Luxury Minibus,20101223,34402,Clients  Taxi Fares,Environmental Services,Social Needs Transport,"1,058.40"
2039163,Mr B Patel T/A Atlas Luxury Minibus,20101206,34402,Clients  Taxi Fares,Environmental Services,Social Needs Transport,"1,940.40"
2054131,Mr Mohammed Iqbal T/A Cobra Private Hire,20101223,34402,Clients  Taxi Fares,Environmental Services,Social Needs Transport,"2,784.60"
2039172,Mr Mohammed Iqbal T/A Cobra Private Hire,20101206,34402,Clients  Taxi Fares,Environmental Services,Social Needs Transport,"4,809.60"
2054243,Nady Minibus#Mr N Q Ullah,20101223,34402,Clients  Taxi Fares,Environmental Services,Social Needs Transport,"1,509.30"
2039744,Nady Minibus#Mr N Q Ullah,20101206,34402,Clients  Taxi Fares,Environmental Services,Social Needs Transport,"2,438.10"
2053298,National Science Learning Centre,20101223,19100,Training Exps Tuition Fees,Children's Services,Technical Innovation Centre,"1,013.00"
2053300,National Science Learning Centre,20101223,19100,Training Exps Tuition Fees,Children's Services,Technical Innovation Centre,"1,013.00"
2038216,Nationwide Access Ltd#Nationwide Platforms,20101223,20501,Engineering Work,Environmental Services,Lighting / Stores Billable Costs,922.50
2052212,Near Us,20101220,55700,Grant Funded Expenditure,Special Funding,European Integration Fund,"5,000.00"
2053986,New Start Childcare,20101223,52000,Vol Assoc Grants  General,Children's Services,Res Serv Agency Placements,"20,000.00"
2053779,Newsquest (North West) Ltd,20101223,48200,Advertising General,Environmental Services,Highway Management,975.80
2053778,Newsquest (North West) Ltd,20101223,48200,Advertising General,Environmental Services,Highway Management,"1,187.30"
2043552,Noblet Municipal Svcs Ltd,20101209,33201,Transport Hire,Environmental Services,Transport Support Service,720.00
2040416,Norman Ashworth Ltd,20101220,52200,Contracted Services,Environmental Services,Greenspace,"3,798.00"
2048939,Northgate Information Solutions UK Limited,20101216,45431,Computer Software Licences,Finance Department,CSD Cashiers,"5,016.00"
2048940,Northgate Information Solutions UK Limited,20101216,45431,Computer Software Licences,Finance Department,CSD Cashiers,"5,016.00"
2049463,Northgate Vehicle Hire (North West) Ltd,20101216,33201,Transport Hire,Environmental Services,Transport Support Service,"11,116.40"
2054282,Northwest Minibuses,20101223,34402,Clients  Taxi Fares,Environmental Services,Social Needs Transport,"4,184.00"
2039755,Northwest Minibuses,20101206,34402,Clients  Taxi Fares,Environmental Services,Social Needs Transport,"8,659.08"
2044218,Northwest Minibuses,20101209,34402,Clients  Taxi Fares,Environmental Services,Social Needs Transport,"1,288.80"
2051142,Norwell Lapley Productions Ltd,20101220,48501,Artistes Fees,Adult Services,Albert Halls  Entertainments,"1,100.00"
2048892,Npower Limited,20101216,21100,Electricity  General,Housing Revenue Account,Housing Revenue Account,"1,604.86"
2048856,Npower Limited,20101216,21200,Gas  General,Adult Services,AD  External Recharges,"1,754.11"
2043626,Npower Limited,20101209,21100,Electricity  General,Adult Services,AD  External Recharges,"27,526.86"
2043626,Npower Limited,20101209,21100,Electricity  General,Environmental Services,Mngmnt & Admin Overhead,"34,659.75"
2043626,Npower Limited,20101209,21100,Electricity  General,Housing Revenue Account,Housing Revenue Account,"89,848.15"
2043626,Npower Limited,20101209,21100,Electricity  General,Property Services,Admin Buildings  General,"10,661.88"
2038733,Npower Limited,20101206,21100,Electricity  General,Central Corporate,Land & Property,645.11
2049013,Npower Limited,20101216,21100,Electricity  General,Housing Revenue Account,Housing Revenue Account,"2,986.04"
2054392,NSL Limited#NSL Services Group,20101230,44202,Contract UnitNonLEA,Environmental Services,Parking Services  On Street,"12,490.11"
2054292,NW United Ltd,20101223,34402,Clients  Taxi Fares,Environmental Services,Social Needs Transport,"1,152.00"
2039758,NW United Ltd,20101206,34402,Clients  Taxi Fares,Environmental Services,Social Needs Transport,"2,115.00"
2048286,Oakwood Engineering,20101223,53100,Agency Staff  Fulltime,Finance Department,Internal Audit,695.13
2048284,Oakwood Engineering,20101223,53100,Agency Staff  Fulltime,Finance Department,Internal Audit,"2,313.63"
2048369,Oasis Fostering Services,20101230,52000,Vol Assoc Grants  General,Children's Services,Res Serv Agency Placements,"5,785.71"
2040285,OCLC (UK) Ltd,20101213,40753,Book Fund Expenditure,Adult Services,Libraries  Resources,"1,500.00"
2054299,Olympic Travel#Mr Dad,20101223,34402,Clients  Taxi Fares,Environmental Services,Social Needs Transport,"1,032.00"
2039759,Olympic Travel#Mr Dad,20101206,34402,Clients  Taxi Fares,Environmental Services,Social Needs Transport,"1,892.00"
2054306,On Time Cars#Nick Hooton,20101223,34402,Clients  Taxi Fares,Environmental Services,Social Needs Transport,"1,173.18"
2039762,On Time Cars#Nick Hooton,20101206,34402,Clients  Taxi Fares,Environmental Services,Social Needs Transport,"1,780.02"
2052388,ONeills Decorating Centre,20101220,20100,Day To Day Maintenance,Housing Revenue Account,R&M  Farnworth East,674.30
2051558,OnSide Education,20101220,19100,Training Exps Tuition Fees,Children's Services,Educ Admin Training  Govnor Crses,"1,080.00"
2053989,Oracle Care Limited,20101223,52000,Vol Assoc Grants  General,Children's Services,Res Serv Agency Placements,"21,921.42"
2056951,Oracle Corporation UK Limited,20101230,45430,Computer Software,Development & Regen,Spatial Data  from GIS,"1,870.40"
2054892,Orange PCS Ltd#PAY S98  1DX,20101223,45252,Mobile Telephone Rental,Adult Services,AD  External Recharges,960.63
2054892,Orange PCS Ltd#PAY S98  1DX,20101223,45254,Mobile Telephone Calls,Adult Services,AD  External Recharges,800.10
2054513,Orange PCS Ltd#PAY S98  1DX,20101223,45252,Mobile Telephone Rental,Adult Services,AD  External Recharges,967.00
2054513,Orange PCS Ltd#PAY S98  1DX,20101223,45254,Mobile Telephone Calls,Adult Services,AD  External Recharges,889.40
2039763,Orchard Furniture & Recycling Service,20101206,50002,Other Agency/Contracted Services,Environmental Services,Waste,529.00
2045914,Orchard Furniture & Recycling Service,20101213,50002,Other Agency/Contracted Services,Environmental Services,Waste,552.00
2039820,Orchard Furniture & Recycling Service,20101206,50002,Other Agency/Contracted Services,Environmental Services,Waste,517.50
2044361,Original Entertainment Programming (OEP) Ltd,20101213,48501,Artistes Fees,Adult Services,Albert Halls  Entertainments,"7,500.00"
2044372,Original Entertainment Programming (OEP) Ltd,20101213,48501,Artistes Fees,Adult Services,Albert Halls  Entertainments,"4,396.35"
2037113,Otis Limited,20101209,52200,Contracted Services,Housing GRF,Access & Advice Housing Options Centre,"2,584.47"
2053585,Outdoor UK Limited,20101223,19100,Training Exps Tuition Fees,Children's Services,Educ Admin Training  School Crses,525.00
2055426,Outdoor UK Limited,20101223,19100,Training Exps Tuition Fees,Children's Services,Educ Admin Training  School Crses,975.00
2050078,P J Services (Bolton) Ltd,20101220,Z1051,Work in Progress Additions,Housing Revenue Account,Capital  HRA,"3,393.00"
2052186,Paragon Construction Group Ltd,20101220,Z1051,Work in Progress Additions,Property Services,Property Services Balance Sheet,"16,625.19"
2056036,Parallel Parents,20101230,52000,Vol Assoc Grants  General,Children's Services,Res Serv Agency Placements,"3,279.30"
2056039,Parallel Parents,20101230,52000,Vol Assoc Grants  General,Children's Services,Res Serv Agency Placements,"3,279.30"
2053614,Paramount Care and Safety,20101223,52000,Vol Assoc Grants  General,Children's Services,Res Serv Agency Placements,682.50
2055776,Park House Healthcare Ltd,20101223,44051,Clients Aids & Adaptations,Adult Services,AD ICES,975.00
2039334,Parklands House Nursing Home,20101207,54302,Nursing Provision,Adult Services,MH Residential External Provision,"13,280.32"
2039308,Parkview Nursing & Residential Home,20101207,54301,Residential Provision,Adult Services,OA  External Provision Residential,"17,710.56"
2039308,Parkview Nursing & Residential Home,20101207,54302,Nursing Provision,Adult Services,OA  External Provision Residential,"2,941.20"
2039308,Parkview Nursing & Residential Home,20101207,54302,Nursing Provision,Adult Services,PD Purchaser Residential Care,"1,491.72"
2039307,Parkview Nursing & Residential Home,20101207,54301,Residential Provision,Adult Services,OA  External Provision Residential,"2,019.89"
2042035,Pastaking UK Ltd,20101222,41101,Catering ProvisionsFood,Environmental Services,Catering,817.00
2042045,Pastaking UK Ltd,20101222,41101,Catering ProvisionsFood,Environmental Services,Catering,588.80
2053996,Pavertec Ltd,20101223,Z6008,Expense AP Accrual,Bolton MBC Balance Sheet,Bolton MBC Balance Sheet,"1,110.00"
2055703,Peak Fabrications (Bolton) Ltd,20101223,52200,Contracted Services,Environmental Services,Greenspace,"8,000.00"
2053224,Peak Fabrications (Bolton) Ltd,20101223,52200,Contracted Services,Environmental Services,Greenspace,"3,650.00"
2053227,Peak Fabrications (Bolton) Ltd,20101223,47103,Miscellaneous Grants,Chief Executives Department,Area Forum Budget,700.00
2053226,Peak Fabrications (Bolton) Ltd,20101223,52200,Contracted Services,Environmental Services,Greenspace,"4,220.00"
2039412,Pemberton Fold#2,20101207,54301,Residential Provision,Adult Services,OA  External Provision Residential,"1,531.44"
2046028,Performing Right Society Ltd,20101213,48504,Performing Rights Fees,Children's Services,Castle Hill Youth Club (Yth Srv),639.89
2054098,Pervaz Akhtar t/a Akhtar Mini Buses,20101223,34402,Clients  Taxi Fares,Environmental Services,Social Needs Transport,918.00
2039155,Pervaz Akhtar t/a Akhtar Mini Buses,20101206,34402,Clients  Taxi Fares,Environmental Services,Social Needs Transport,"1,683.00"
2043550,Peter Douglass Platforms,20101209,33201,Transport Hire,Environmental Services,Transport Support Service,"1,134.00"
2048972,Photographic360.com,20101216,48509,Other Fees,Adult Services,Mus & Archives North West Hub,990.00
2055775,Playgrounds (UK),20101223,52200,Contracted Services,Environmental Services,Greenspace,950.00
2044710,Post Office Ltd,20101213,31300,Vehicle Tax,Environmental Services,Transport Support Service,"3,895.00"
2037618,Powercare,20101223,40101,Operational Equipment Maint,Environmental Services,Building Cleaning,"1,102.50"
2051567,Powerperfector Plc,20101220,Z1051,Work in Progress Additions,Property Services,Property Services Balance Sheet,"37,583.00"
2053025,Premier Care Ltd#Bolton Care Services,20101223,52200,Contracted Services,Adult Services,OA  Home Care Services external provision,"42,572.29"
2054314,Premier Minibuses (NW) Ltd,20101223,34402,Clients  Taxi Fares,Environmental Services,Social Needs Transport,"4,974.54"
2039769,Premier Minibuses (NW) Ltd,20101206,34402,Clients  Taxi Fares,Environmental Services,Social Needs Transport,"8,003.16"
2050542,Pre-School Learning Alliance#Tonge Nursery#Oxford Grove,20101220,54202,Family Placement (Daycare),Children's Services,Family Support Day Care,856.40
2049683,Prism Medical UK,20101216,44051,Clients Aids & Adaptations,Adult Services,AD ICES,"2,260.60"
2046354,Product Development Corporation UK,20101220,43002,Distribution,Central Services,Civic & Admin Scene,"9,910.43"
2053087,Quality and Innovation Company Ltd,20101223,48510,Consultancy Fees,Children's Services,School Improvement  P.E.,"1,800.00"
2039386,Queens Park View#Intelligent Care,20101207,54301,Residential Provision,Adult Services,MH Residential External Provision,"8,349.80"
2053391,R Banks & Son,20101230,48555,Coroners Body Conveyancing Fees,Central Corporate,Coroners,662.00
2048715,R D Lockett Ltd#2,20101216,20100,Day To Day Maintenance,Environmental Services,Markets  Rent Account,503.62
2054105,Rafik Patel#Alpha Luxury Travel,20101223,34402,Clients  Taxi Fares,Environmental Services,Social Needs Transport,"1,099.80"
2039157,Rafik Patel#Alpha Luxury Travel,20101206,34402,Clients  Taxi Fares,Environmental Services,Social Needs Transport,"1,861.20"
2039309,Randomlight Ltd#Heightside House,20101207,54302,Nursing Provision,Adult Services,LD Purchaser Residential Care,"2,228.04"
2039309,Randomlight Ltd#Heightside House,20101207,54301,Residential Provision,Adult Services,MH Residential External Provision,"2,270.12"
2039309,Randomlight Ltd#Heightside House,20101207,54302,Nursing Provision,Adult Services,MH Residential External Provision,"8,848.52"
2049060,REDACTED - PERSONAL DATA,20101216,48509,Other Fees,Adult Services,Mus & Archives North West Hub,500.00
2046023,REDACTED - PERSONAL DATA,20101213,54202,Family Placement (Daycare),Children's Services,Disability Serv Bolton Shared Care,"1,317.00"
2054123,REDACTED - PERSONAL DATA,20101223,34402,Clients  Taxi Fares,Environmental Services,Social Needs Transport,704.70
2039166,REDACTED - PERSONAL DATA,20101206,34402,Clients  Taxi Fares,Environmental Services,Social Needs Transport,"1,465.20"
2053089,REDACTED - PERSONAL DATA,20101230,48510,Consultancy Fees,Development & Regen,REDD ES Projects,"1,000.00"
2050523,REDACTED - PERSONAL DATA,20101220,54202,Family Placement (Daycare),Children's Services,Family Support Day Care,563.71
2054110,REDACTED - PERSONAL DATA,20101223,34402,Clients  Taxi Fares,Environmental Services,Social Needs Transport,"1,674.00"
2039160,REDACTED - PERSONAL DATA,20101206,34402,Clients  Taxi Fares,Environmental Services,Social Needs Transport,"3,438.00"
2054079,REDACTED - PERSONAL DATA,20101223,34402,Clients  Taxi Fares,Environmental Services,Social Needs Transport,"2,210.40"
2039148,REDACTED - PERSONAL DATA,20101206,34402,Clients  Taxi Fares,Environmental Services,Social Needs Transport,"2,430.00"
2051296,REDACTED - PERSONAL DATA,20101220,48509,Other Fees,Children's Services,Management Team,988.82
2054128,REDACTED - PERSONAL DATA,20101223,34402,Clients  Taxi Fares,Environmental Services,Social Needs Transport,951.20
2039169,REDACTED - PERSONAL DATA,20101206,34402,Clients  Taxi Fares,Environmental Services,Social Needs Transport,"1,307.90"
2046562,REDACTED - PERSONAL DATA,20101216,48553,Coroners Non Forensic Post Mortems,Central Corporate,Coroners,"3,484.80"
2046565,REDACTED - PERSONAL DATA,20101216,48553,Coroners Non Forensic Post Mortems,Central Corporate,Coroners,"1,355.20"
2046589,REDACTED - PERSONAL DATA,20101216,48553,Coroners Non Forensic Post Mortems,Central Corporate,Coroners,774.40
2056993,REDACTED - PERSONAL DATA,20101230,48509,Other Fees,Children's Services,Management Team,952.50
2051224,REDACTED - PERSONAL DATA,20101220,48502,Legal Fees,Development & Regen,Development Management,795.95
2046607,REDACTED - PERSONAL DATA,20101216,48553,Coroners Non Forensic Post Mortems,Central Corporate,Coroners,"1,548.80"
2046591,REDACTED - PERSONAL DATA,20101216,48553,Coroners Non Forensic Post Mortems,Central Corporate,Coroners,968.00
2052304,REDACTED - PERSONAL DATA,20101220,48509,Other Fees,Children's Services,Management Team,600.00
2046593,REDACTED - PERSONAL DATA,20101216,48553,Coroners Non Forensic Post Mortems,Central Corporate,Coroners,"1,452.00"
2051521,REDACTED - PERSONAL DATA,20101220,48502,Legal Fees,Children's Services,Management Team,750.00
2050415,REDACTED - PERSONAL DATA,20101220,48509,Other Fees,Adult Services,Mus & Archives Formal Learning,500.00
2054145,REDACTED - PERSONAL DATA,20101223,34402,Clients  Taxi Fares,Environmental Services,Social Needs Transport,"1,585.35"
2039733,REDACTED - PERSONAL DATA,20101206,34402,Clients  Taxi Fares,Environmental Services,Social Needs Transport,"2,682.90"
2040760,REDACTED - PERSONAL DATA,20101209,48509,Other Fees,Adult Services,Mus & Archives Formal Learning,"1,050.00"
2048763,REDACTED - PERSONAL DATA,20101216,48510,Consultancy Fees,Adult Services,AD Mental Capacity Act,"2,496.60"
2052327,REDACTED - PERSONAL DATA,20101220,48509,Other Fees,Children's Services,Management Team,"1,153.79"
2052209,REDACTED - PERSONAL DATA,20101220,48509,Other Fees,Children's Services,Management Team,520.00
2050533,REDACTED - PERSONAL DATA,20101220,54202,Family Placement (Daycare),Children's Services,Family Support Day Care,538.77
2054230,REDACTED - PERSONAL DATA,20101223,34402,Clients  Taxi Fares,Environmental Services,Social Needs Transport,587.34
2039742,REDACTED - PERSONAL DATA,20101206,34402,Clients  Taxi Fares,Environmental Services,Social Needs Transport,993.96
2051227,REDACTED - PERSONAL DATA,20101220,48502,Legal Fees,Children's Services,Management Team,"2,250.00"
2040986,REDACTED - PERSONAL DATA,20101209,48502,Legal Fees,Children's Services,Management Team,"1,500.00"
2051519,REDACTED - PERSONAL DATA,20101220,48502,Legal Fees,Development & Regen,Development Management,900.00
2051234,REDACTED - PERSONAL DATA,20101220,48502,Legal Fees,Children's Services,Management Team,725.00
2056991,REDACTED - PERSONAL DATA,20101230,48502,Legal Fees,Children's Services,Management Team,725.00
2038473,REDACTED - PERSONAL DATA,20101206,48557,Deputy Coroners Fees,Central Corporate,Coroners,"2,400.00"
2054319,REDACTED - PERSONAL DATA,20101223,34402,Clients  Taxi Fares,Environmental Services,Social Needs Transport,"1,180.30"
2039773,REDACTED - PERSONAL DATA,20101206,34402,Clients  Taxi Fares,Environmental Services,Social Needs Transport,885.60
2051532,REDACTED - PERSONAL DATA,20101220,48502,Legal Fees,Children's Services,Management Team,925.00
2051216,REDACTED - PERSONAL DATA,20101220,48502,Legal Fees,Children's Services,Management Team,500.00
2051487,REDACTED - PERSONAL DATA,20101220,48502,Legal Fees,Children's Services,Management Team,"2,200.00"
2057047,REDACTED - PERSONAL DATA,20101230,48502,Legal Fees,Children's Services,Management Team,"1,000.00"
2051497,REDACTED - PERSONAL DATA,20101220,48502,Legal Fees,Children's Services,Management Team,500.00
2055838,REDACTED - PERSONAL DATA,20101223,53100,Agency Staff  Fulltime,Children's Services,Sec Sch Imp  Running Costs,"2,000.00"
2039746,REDACTED - PERSONAL DATA,20101206,34402,Clients  Taxi Fares,Environmental Services,Social Needs Transport,"1,167.06"
2056182,REDACTED - PERSONAL DATA,20101230,54202,Family Placement (Daycare),Children's Services,Family Support Day Care,"1,572.00"
2054316,REDACTED - PERSONAL DATA,20101223,34402,Clients  Taxi Fares,Environmental Services,Social Needs Transport,561.60
2039772,REDACTED - PERSONAL DATA,20101206,34402,Clients  Taxi Fares,Environmental Services,Social Needs Transport,950.40
2054343,REDACTED - PERSONAL DATA,20101223,34402,Clients  Taxi Fares,Environmental Services,Social Needs Transport,"1,005.12"
2039788,REDACTED - PERSONAL DATA,20101206,34402,Clients  Taxi Fares,Environmental Services,Social Needs Transport,"1,319.22"
2039819,REDACTED - PERSONAL DATA,20101206,22003,Ground Rent,Adult Services,AD Sensory Impairment,"1,833.33"
2057028,REDACTED - PERSONAL DATA,20101230,48509,Other Fees,Children's Services,Management Team,"1,294.56"
2039370,Redbank Care Home#Payee Voyage North,20101207,54301,Residential Provision,Adult Services,LD Purchaser Residential Care,"4,692.20"
2055705,Reed Northern Newspapers Ltd,20101223,93120,Refunds,Environmental Services,Waste,"1,574.69"
2054765,Relphs Funeral Service,20101223,52300,Client Support Costs,Adult Services,"AD Finance, Income & Assess. Team","1,100.00"
2048778,Remploy Ltd,20101223,52200,Contracted Services,Adult Services,Resources,865.30
2046145,Ribble Valley Building Services,20101230,20100,Day To Day Maintenance,Central Corporate,Land & Property,527.99
2049049,Ricoh UK Limited,20101216,43030,Photocopying Lease/Maintenance,Central Services,Civic & Admin Text & Reprographics,953.28
2049051,Ricoh UK Limited,20101216,43030,Photocopying Lease/Maintenance,Central Services,Civic & Admin Text & Reprographics,"2,808.82"
2049054,Ricoh UK Limited,20101216,43030,Photocopying Lease/Maintenance,Central Services,Civic & Admin Text & Reprographics,513.54
2048849,Ricoh UK Limited,20101216,43030,Photocopying Lease/Maintenance,Central Services,Civic & Admin Text & Reprographics,"13,043.48"
2049039,Ricoh UK Limited,20101216,43030,Photocopying Lease/Maintenance,Central Services,Civic & Admin Text & Reprographics,"6,935.32"
2049036,Ricoh UK Limited,20101216,43030,Photocopying Lease/Maintenance,Central Services,Civic & Admin Text & Reprographics,"1,819.40"
2049035,Ricoh UK Limited,20101216,43030,Photocopying Lease/Maintenance,Central Services,Civic & Admin Text & Reprographics,"1,733.74"
2049020,Ricoh UK Limited,20101216,43030,Photocopying Lease/Maintenance,Central Services,Civic & Admin Text & Reprographics,"3,074.41"
2049021,Ricoh UK Limited,20101216,43030,Photocopying Lease/Maintenance,Central Services,Civic & Admin Text & Reprographics,"3,863.76"
2049024,Ricoh UK Limited,20101216,43030,Photocopying Lease/Maintenance,Central Services,Civic & Admin Text & Reprographics,"3,590.91"
2049022,Ricoh UK Limited,20101216,43030,Photocopying Lease/Maintenance,Central Services,Civic & Admin Text & Reprographics,"3,300.49"
2049025,Ricoh UK Limited,20101216,43030,Photocopying Lease/Maintenance,Central Services,Civic & Admin Text & Reprographics,"2,449.60"
2049030,Ricoh UK Limited,20101216,43030,Photocopying Lease/Maintenance,Central Services,Civic & Admin Text & Reprographics,"2,412.95"
2051371,RICS#Royal Institute of Chartered Surveyors,20101220,19406,Professional Fees,Property Services,Projects,591.00
2051302,RICS#Royal Institute of Chartered Surveyors,20101220,19406,Professional Fees,Property Services,Estates & Property Management,690.00
2044724,RICS#Royal Institute of Chartered Surveyors,20101213,19406,Professional Fees,Property Services,Estates & Property Management,"2,374.00"
2038184,Rimmers Music Ltd,20101223,40150,Office Furniture Purchase,Children's Services,Music ServInstru & Vocal Teach,"3,323.95"
2056031,Rite Directions Ltd,20101230,52000,Vol Assoc Grants  General,Children's Services,Res Serv Agency Placements,"3,900.00"
2053036,Riviera Care Limited#Riviera Court,20101223,52200,Contracted Services,Adult Services,MH Residential External Provision,"2,110.17"
2053035,Riviera Care Limited#Riviera Court,20101223,52200,Contracted Services,Adult Services,MH Residential External Provision,"2,042.10"
2053037,Riviera Care Limited#Riviera Court,20101223,52200,Contracted Services,Adult Services,MH Residential External Provision,"2,042.10"
2039310,Rivington View Nursing Home,20101207,54301,Residential Provision,Adult Services,OA  External Provision Residential,"13,998.15"
2039310,Rivington View Nursing Home,20101207,54302,Nursing Provision,Adult Services,OA  External Provision Residential,"3,101.47"
2039310,Rivington View Nursing Home,20101207,54302,Nursing Provision,Adult Services,PD Purchaser Residential Care,"1,493.52"
2037385,RMAC UK Ltd,20101223,20100,Day To Day Maintenance,Environmental Services,Markets  Rent Account,919.01
2046157,RMAC UK Ltd,20101230,20100,Day To Day Maintenance,Environmental Services,Markets  Rent Account,"1,574.35"
2046173,RMAC UK Ltd,20101230,20100,Day To Day Maintenance,Environmental Services,Markets  Rent Account,549.79
2038196,Robert Scott & Sons Ltd,20101223,26000,Cleaning Materials,Environmental Services,Building Cleaning,"1,555.10"
2046784,Robinson Plant Hire,20101216,33202,Plant Hire,Environmental Services,Greenspace,818.26
2056918,Ron Chalker (The Potato Man) Ltd,20101230,41101,Catering ProvisionsFood,Environmental Services,Catering,"12,601.97"
2040928,Ron Chalker (The Potato Man) Ltd,20101213,41101,Catering ProvisionsFood,Environmental Services,Catering,"14,367.47"
2056298,Ron Chalker (The Potato Man) Ltd,20101230,41101,Catering ProvisionsFood,Environmental Services,Catering,"13,098.47"
2039311,Rose Court Nursing & RH Ltd,20101207,54301,Residential Provision,Adult Services,MH Residential External Provision,"2,303.34"
2039311,Rose Court Nursing & RH Ltd,20101207,54302,Nursing Provision,Adult Services,MH Residential External Provision,"1,535.56"
2039311,Rose Court Nursing & RH Ltd,20101207,54301,Residential Provision,Adult Services,OA  External Provision Residential,"5,237.08"
2039311,Rose Court Nursing & RH Ltd,20101207,54302,Nursing Provision,Adult Services,OA  External Provision Residential,"7,717.80"
2038906,Royal Mail Group Ltd,20101206,40613,Goods for Resale,Adult Services,TIC  Tourist Information Shop,686.34
2055312,Royal Mail Group Ltd,20101223,45000,Postages Direct Costs,Finance Department,Council Tax,879.27
2048256,Royal Mail Group Ltd,20101216,45000,Postages Direct Costs,Finance Department,Council Tax,"1,455.09"
2048256,Royal Mail Group Ltd,20101216,45000,Postages Direct Costs,Finance Department,Housing Benefits,844.83
2053893,Royal Mail Group Ltd,20101223,45000,Postages Direct Costs,Finance Department,Finance Ap Centre of Excellence,"1,030.50"
2040554,Royal Mencap Society#Mencap,20101207,54301,Residential Provision,Adult Services,LD Purchaser Residential Care,"12,051.00"
2040579,Royal Mencap Society#Mencap,20101207,54301,Residential Provision,Adult Services,LD Purchaser Residential Care,"21,052.00"
2040581,Royal Mencap Society#Mencap,20101207,54301,Residential Provision,Adult Services,LD Purchaser Residential Care,"11,309.40"
2048953,Ryton Projects Ltd,20101216,48510,Consultancy Fees,Chief Executives Department,MFD Project,"5,000.00"
2055960,Ryton Projects Ltd,20101230,48510,Consultancy Fees,Chief Executives Department,MFD Project,"3,750.00"
2054323,S & D Private Hire,20101223,34402,Clients  Taxi Fares,Environmental Services,Social Needs Transport,"4,926.24"
2039775,S & D Private Hire,20101206,34402,Clients  Taxi Fares,Environmental Services,Social Needs Transport,"7,054.20"
2045945,Safety Awareness Limited,20101213,48510,Consultancy Fees,Development & Regen,Addressing Worklessness,"3,445.00"
2054631,Salford GIS Limited,20101230,48510,Consultancy Fees,Development & Regen,Spatial Data  from GIS,500.00
2054569,Sarabec Limited,20101230,44051,Clients Aids & Adaptations,Adult Services,AD Sensory Impairment,"1,612.20"
2053398,Saville Audio Visual,20101223,46009,Conference Expenses,Chief Executives Department,Partnerships,"2,370.60"
2054326,Schools Direct,20101223,34402,Clients  Taxi Fares,Environmental Services,Social Needs Transport,"1,064.70"
2039776,Schools Direct,20101206,34402,Clients  Taxi Fares,Environmental Services,Social Needs Transport,"1,801.80"
2049488,Scott Hughes Design Ltd,20101216,Z1051,Work in Progress Additions,Environmental Services,Environmental Services Balance sheet,"1,000.00"
2049517,Scott Hughes Design Ltd,20101216,Z1051,Work in Progress Additions,Environmental Services,Environmental Services Balance sheet,500.00
2049010,Scottish & Southern Energy plc,20101216,21100,Electricity  General,Housing Revenue Account,Housing Revenue Account,"1,267.29"
2045871,Serco Leisure Operating Ltd#2,20101213,48505,Swimming/Pitch  Hire,Children's Services,Pri Non Del School,"65,376.80"
2039841,Serco Leisure Operating Ltd#2,20101206,52000,Vol Assoc Grants  General,Children's Services,Castle Hill NonStaff,"11,307.00"
2043597,Serco Leisure Operating Ltd#2,20101209,52000,Vol Assoc Grants  General,Children's Services,Castle Hill NonStaff,"8,195.00"
2052539,Serco Leisure Operating Ltd#2,20101220,52000,Vol Assoc Grants  General,Children's Services,Castle Hill NonStaff,"9,977.00"
2045272,Serco Leisure Operating Ltd#2,20101213,52200,Contracted Services,Children's Services,Castle Hill NonStaff,"36,044.00"
2039838,Serco Leisure Operating Ltd#2,20101206,52200,Contracted Services,Children's Services,"Sport, Health & Inclusion General","8,195.00"
2045271,Serco Leisure Operating Ltd#2,20101213,52200,Contracted Services,Children's Services,"Sport, Health & Inclusion General","7,750.00"
2039835,Serco Leisure Operating Ltd#2,20101206,52000,Vol Assoc Grants  General,Children's Services,"Sport, Health & Inclusion General","9,235.00"
2055362,Serco Leisure Operating Ltd#2,20101223,52200,Contracted Services,Adult Services,Leisure  Overhead Account,"5,923.05"
2056976,Seva Line,20101230,52200,Contracted Services,Adult Services,OA  Home Care Services external provision,"31,207.00"
2054821,SG World,20101230,48203,Marketing,Central Services,Marketing  General (N),834.92
2040633,Shanleys Ltd,20101209,48203,Marketing,Central Services,Marketing  General (N),"1,891.00"
2040632,Shanleys Ltd,20101209,48203,Marketing,Central Services,Marketing  General (N),681.00
2054448,Shanleys Ltd,20101223,48203,Marketing,Central Services,Marketing  General (N),601.00
2039313,Shannon Court Nursing Home,20101207,54302,Nursing Provision,Adult Services,OA  External Provision Residential,"24,146.63"
2039313,Shannon Court Nursing Home,20101207,54302,Nursing Provision,Adult Services,PD Purchaser Residential Care,"3,083.38"
2048652,Shared Intelligence,20101223,48509,Other Fees,Adult Services,Libraries Ext. Funded Projects,"10,000.00"
2048654,Shared Intelligence,20101223,48509,Other Fees,Adult Services,Libraries Ext. Funded Projects,"5,000.00"
2039376,Shassab,20101207,54301,Residential Provision,Adult Services,MH Residential External Provision,"1,562.16"
2053995,Showsec International Limited,20101223,47106,Xmas Lights,Central Services,Christmas Lights,"2,268.70"
2052531,Signage Systems Limited,20101220,Z1051,Work in Progress Additions,Adult Services,Adult Services Balance Sheet,"3,050.33"
2037409,SignHealth,20101223,52000,Vol Assoc Grants  General,Adult Services,AD Sensory Impairment,851.44
2037407,SignHealth,20101223,52000,Vol Assoc Grants  General,Adult Services,AD Sensory Impairment,"1,060.17"
2040103,Sinclair Knight Merz (Europe),20101206,48509,Other Fees,Property Services,Energy Efficiency Initiatives,"1,654.75"
2048418,Site Lift Limited,20101223,Z6008,Expense AP Accrual,Bolton MBC Balance Sheet,Bolton MBC Balance Sheet,647.50
2055175,Site Lift Limited,20101230,Z6008,Expense AP Accrual,Bolton MBC Balance Sheet,Bolton MBC Balance Sheet,647.50
2054433,SLC Paragon,20101230,52200,Contracted Services,Adult Services,MH Residential External Provision,"1,159.48"
2054900,Smithfield Consulting Limited,20101223,41106,Bar Stock,Adult Services,Civic Catering Town Hall Bar,984.00
2037398,Smithfield Consulting Limited,20101223,41106,Bar Stock,Adult Services,Civic Catering Town Hall Bar,509.76
2039977,Smiths Gore,20101206,22003,Ground Rent,Environmental Services,Greenspace,650.00
2055454,SMW Architects Ltd,20101230,48509,Other Fees,Development & Regen,Project Revenue Account,"6,775.00"
2039346,Southlands Residential Home#Southlands,20101207,54301,Residential Provision,Adult Services,OA  External Provision Residential,"9,994.85"
2039364,Southlea Residential Care Home,20101207,54301,Residential Provision,Adult Services,MH Residential External Provision,"1,278.04"
2039413,Southview Lodge Residential Care Home,20101207,54301,Residential Provision,Adult Services,OA  External Provision Residential,"1,444.00"
2052560,Spectra Security Ltd,20101220,25107,Secure Doors,Property Services,Admin Buildings  General,591.00
2039379,Spennymoor Care Home Ltd,20101207,54301,Residential Provision,Adult Services,OA  External Provision Residential,"14,568.72"
2048307,Spice Valley Restaurants Ltd#2,20101216,48200,Advertising General,Adult Services,Albert Halls  Entertainments,720.00
2039315,St Catherines Care Home,20101207,54301,Residential Provision,Adult Services,OA  External Provision Residential,"14,880.32"
2039315,St Catherines Care Home,20101207,54302,Nursing Provision,Adult Services,OA  External Provision Residential,"22,879.52"
2044160,Stannah Lift Services Ltd,20101209,Z1051,Work in Progress Additions,Housing GRF,Capital  General Fund,"2,513.00"
2054370,Stannah Lift Services Ltd,20101223,20100,Day To Day Maintenance,Housing Revenue Account,R & M  Blackburn Road,"1,097.98"
2053919,Stannah Lift Services Ltd,20101223,Z1051,Work in Progress Additions,Housing GRF,Capital  General Fund,"2,147.00"
2054331,Stans Mini-Bus,20101223,34402,Clients  Taxi Fares,Environmental Services,Social Needs Transport,930.00
2039781,Stans Mini-Bus,20101206,34402,Clients  Taxi Fares,Environmental Services,Social Needs Transport,"1,680.00"
2039316,Starmount Villa Residential Care Home,20101207,54301,Residential Provision,Adult Services,OA  External Provision Residential,"7,917.80"
2054334,STB Supercars PH Ltd,20101223,34402,Clients  Taxi Fares,Environmental Services,Social Needs Transport,"4,886.43"
2039783,STB Supercars PH Ltd,20101206,34402,Clients  Taxi Fares,Environmental Services,Social Needs Transport,"8,168.92"
2044085,Stockport Psychology Services,20101209,48509,Other Fees,Children's Services,Management Team,902.40
2044245,Stone Wall Smith,20101223,Z6008,Expense AP Accrual,Bolton MBC Balance Sheet,Bolton MBC Balance Sheet,"5,140.00"
2039399,Stonedale Lodge#Bupa Care Homes,20101207,54301,Residential Provision,Adult Services,OA  External Provision Residential,"1,320.20"
2039348,Strathmore Nursing Home#Whitehill Homes Ltd,20101207,54301,Residential Provision,Adult Services,OA  External Provision Residential,"10,325.44"
2039348,Strathmore Nursing Home#Whitehill Homes Ltd,20101207,54302,Nursing Provision,Adult Services,OA  External Provision Residential,"5,098.12"
2039348,Strathmore Nursing Home#Whitehill Homes Ltd,20101207,54301,Residential Provision,Adult Services,PD Purchaser Residential Care,"1,493.52"
2039347,Strathmore Nursing Home#Whitehill Homes Ltd,20101207,54301,Residential Provision,Adult Services,OA  External Provision Residential,640.08
2054340,Street Cars#Ajaz Farzand,20101223,34402,Clients  Taxi Fares,Environmental Services,Social Needs Transport,"3,282.00"
2039786,Street Cars#Ajaz Farzand,20101206,34402,Clients  Taxi Fares,Environmental Services,Social Needs Transport,"2,597.40"
2051523,Street Cars#Ajaz Farzand,20101220,34402,Clients  Taxi Fares,Environmental Services,Social Needs Transport,682.00
2051524,Street Cars#Ajaz Farzand,20101220,34402,Clients  Taxi Fares,Environmental Services,Social Needs Transport,553.90
2039350,Sunnyside Residential Home,20101207,54301,Residential Provision,Adult Services,OA  External Provision Residential,"29,463.29"
2039349,Sunnyside Residential Home,20101207,54301,Residential Provision,Adult Services,OA  External Provision Residential,"1,262.78"
2050433,Supplies Team Limited,20101223,43032,Office Stationery,Environmental Services,Parking Services  Management,625.13
2054589,Supplies Team Limited,20101230,43001,Printing General,Environmental Services,Waste,751.58
2040645,Supplies Team Limited,20101220,43032,Office Stationery,Environmental Services,Parking Services  Management,555.09
2039858,Sutton Vane Associates,20101206,48510,Consultancy Fees,Development & Regen,REDD PRU Projects,"1,618.61"
2055169,Swift Fire & Security,20101223,25106,C.C.T.V.,Environmental Services,Bereavement Services,750.00
2039317,Sydenhurst,20101207,54301,Residential Provision,Adult Services,OA  External Provision Residential,"2,598.64"
2039904,Sykes Chemist Ltd,20101206,52200,Contracted Services,Adult Services,Drugs Action Team,"1,517.09"
2039924,Sykes Chemist Ltd,20101206,52200,Contracted Services,Adult Services,Drugs Action Team,505.97
2055292,Synergy Creative Design & Marketing Ltd,20101223,48203,Marketing,Housing GRF,Homes for You,712.50
2053390,Synergy Creative Design & Marketing Ltd,20101223,48203,Marketing,Housing GRF,Homes for You,712.50
2053384,Synergy Creative Design & Marketing Ltd,20101223,48203,Marketing,Housing GRF,Homes for You,712.50
2053388,Synergy Creative Design & Marketing Ltd,20101223,48203,Marketing,Housing GRF,Homes for You,712.50
2056278,Synergy Creative Design & Marketing Ltd,20101230,48203,Marketing,Housing GRF,Homes for You,712.50
2055283,Synergy Creative Design & Marketing Ltd,20101223,48203,Marketing,Housing GRF,Homes for You,712.50
2056281,Synergy Creative Design & Marketing Ltd,20101230,48203,Marketing,Housing GRF,Homes for You,712.50
2046402,Synergy Creative Design & Marketing Ltd,20101216,48203,Marketing,Central Services,Marketing  General (N),525.00
2046406,Synergy Creative Design & Marketing Ltd,20101216,48203,Marketing,Central Services,Marketing  General (N),"2,900.00"
2046396,Synergy Creative Design & Marketing Ltd,20101216,48203,Marketing,Central Services,Marketing  General (N),"2,026.00"
2045105,System Vision Ltd,20101213,40100,Operational Equipment Purchase,Adult Services,Community Safety Ext Funded Schemes  Projects,"2,750.00"
2048497,T Lowe & Son Limited,20101216,20100,Day To Day Maintenance,Central Corporate,Land & Property,750.00
2048578,Tabs FM Ltd,20101223,20100,Day To Day Maintenance,Environmental Services,Security Services,"1,042.30"
2049814,TAPE#Photography & Film By Jan Dixon & Emily Dixon,20101216,Z1051,Work in Progress Additions,Housing Revenue Account,Capital  HRA,"1,000.00"
2053232,Taylor Bros (Trees),20101223,52200,Contracted Services,Environmental Services,Greenspace,"8,920.00"
2040079,Taylor Young Limited,20101206,52200,Contracted Services,Property Services,Projects,"1,826.16"
2051612,Taylor Young Limited,20101220,52200,Contracted Services,Property Services,Projects,"1,783.72"
2038361,Technology Solutions Limited,20101223,25106,C.C.T.V.,Environmental Services,Security Services,672.00
2052474,Telecars Bolton,20101220,34402,Clients  Taxi Fares,Environmental Services,Social Needs Transport,"1,885.50"
2051527,Telecars Bolton,20101220,34402,Clients  Taxi Fares,Environmental Services,Social Needs Transport,"1,669.50"
2043583,Telecars Bolton,20101209,34402,Clients  Taxi Fares,Adult Services,OA  Darley Court Intermediate Care,893.00
2043583,Telecars Bolton,20101209,34402,Clients  Taxi Fares,Children's Services,Contact & Direct Work,"3,042.40"
2055334,Telecars Bolton,20101223,34402,Clients  Taxi Fares,Environmental Services,Social Needs Transport,"1,831.50"
2052472,Telecars Bolton,20101220,34402,Clients  Taxi Fares,Environmental Services,Social Needs Transport,"1,885.50"
2056900,Telecars Bolton,20101230,34405,Clients  Swimming Fares,Environmental Services,Social Needs Transport,"1,831.50"
2039306,The Bakewells,20101207,54301,Residential Provision,Adult Services,OA  External Provision Residential,"13,806.88"
2039306,The Bakewells,20101207,54301,Residential Provision,Adult Services,PD Purchaser Residential Care,"1,514.64"
2039328,The Brandles,20101207,54301,Residential Provision,Adult Services,MH Residential External Provision,"3,015.52"
2040548,The Bungalow Residential Home,20101207,54301,Residential Provision,Adult Services,PD Purchaser Residential Care,"1,440.18"
2040564,The Bungalow Residential Home,20101207,54301,Residential Provision,Adult Services,OA  External Provision Residential,"13,441.68"
2039391,The Chimes,20101207,54301,Residential Provision,Adult Services,PD Purchaser Residential Care,"1,740.00"
2039363,The Clough Residential Home,20101207,54301,Residential Provision,Adult Services,OA  External Provision Residential,"23,704.08"
2054970,The Columbaria Company,20101230,40601,General Materials,Environmental Services,Bereavement Services,"1,008.00"
2039138,The Corporate Group#Corporate Products Ltd,20101206,48509,Other Fees,Development & Regen,Project Revenue Account,"5,250.00"
2039390,The Croft Care Home#Wigan,20101207,54301,Residential Provision,Adult Services,OA  External Provision Residential,"3,038.00"
2043605,The Danwood Group Limited,20101209,40143,Office Equipment Leased Rental,Housing GRF,Access & Advice Housing Options Centre,798.42
2039358,The David Lewis Centre,20101207,54301,Residential Provision,Adult Services,LD Purchaser Residential Care,"4,236.48"
2039398,The Gables Care Home,20101207,54301,Residential Provision,Adult Services,OA  External Provision Residential,"1,463.56"
2038517,The Leaving Care Company,20101206,52000,Vol Assoc Grants  General,Children's Services,Res Serv Agency Placements,"1,066.83"
2040288,The Leaving Care Company,20101223,52000,Vol Assoc Grants  General,Children's Services,Res Serv Agency Placements,"1,448.67"
2038510,The Leaving Care Company,20101206,52000,Vol Assoc Grants  General,Children's Services,Res Serv Agency Placements,"3,535.87"
2053777,The Leaving Care Team,20101223,52300,Client Support Costs,Children's Services,Child Prot Leaving Care Team,"2,015.34"
2052999,The Local Care Company (Bolton) Ltd,20101223,52200,Contracted Services,Adult Services,OA  Home Care Services external provision,"55,693.36"
2039367,The Oaks,20101207,54301,Residential Provision,Adult Services,OA  External Provision Residential,"3,099.68"
2055129,The Octagon,20101223,47103,Miscellaneous Grants,Chief Executives Department,Partnerships,"36,345.00"
2039360,The Old Vicarage,20101207,54301,Residential Provision,Adult Services,OA  External Provision Residential,"6,006.77"
2043254,"The Palace Theatre, Manchester",20101222,40601,General Materials,Children's Services,Admin Strategic Finance Unit,700.00
2056034,The Railway Home for Children,20101230,52000,Vol Assoc Grants  General,Children's Services,Disability Serv External Provision,"4,800.00"
2039327,The Spinal Unit Action Group,20101207,54301,Residential Provision,Adult Services,PD Purchaser Residential Care,"2,192.40"
2056897,The Sycamore Project#Zacs Bar,20101230,47103,Miscellaneous Grants,Children's Services,Youth Serv Voluntary Organisations,"6,115.50"
2053786,The Together Trust#was BGWS,20101223,52000,Vol Assoc Grants  General,Children's Services,Disability Serv External Provision,"15,882.85"
2055821,The Together Trust#was BGWS,20101223,52000,Vol Assoc Grants  General,Children's Services,Res Serv Agency Placements,"9,128.40"
2053963,The Together Trust#was BGWS,20101223,52200,Contracted Services,Adult Services,LD Purchaser Supported Housing,"6,730.96"
2053958,The Together Trust#was BGWS,20101223,52200,Contracted Services,Adult Services,LD Purchaser Supported Housing,"12,382.46"
2053953,The Together Trust#was BGWS,20101223,52200,Contracted Services,Adult Services,LD Purchaser Supported Housing,"13,669.19"
2055849,The Together Trust#was BGWS,20101223,52000,Vol Assoc Grants  General,Children's Services,Disability Serv External Provision,"15,370.50"
2055845,The Together Trust#was BGWS,20101223,52000,Vol Assoc Grants  General,Children's Services,Disability Serv External Provision,"15,370.50"
2053781,The Together Trust#was BGWS,20101223,52000,Vol Assoc Grants  General,Children's Services,Disability Serv External Provision,"15,882.85"
2039369,Thorley House,20101207,54301,Residential Provision,Adult Services,OA  External Provision Residential,"1,519.00"
2039329,Thorncliffe Nursing Home,20101207,54301,Residential Provision,Adult Services,OA  External Provision Residential,"1,576.00"
2049148,TL Electrical Services 2002 Ltd,20101223,40101,Operational Equipment Maint,Environmental Services,Markets  Rent Account,"15,685.00"
2051150,Tough Furniture Ltd,20101220,40100,Operational Equipment Purchase,Children's Services,Res Serv Maintenance,"6,017.30"
2049098,Tower FM,20101216,48200,Advertising General,Adult Services,Albert Halls  Entertainments,"1,807.05"
2038171,Trakm8 Limited,20101223,Z1051,Work in Progress Additions,Environmental Services,Environmental Services Balance sheet,"2,500.00"
2038169,Trakm8 Limited,20101223,Z1051,Work in Progress Additions,Environmental Services,Environmental Services Balance sheet,"5,980.00"
2038172,Trakm8 Limited,20101223,Z1051,Work in Progress Additions,Environmental Services,Environmental Services Balance sheet,975.00
2038170,Trakm8 Limited,20101223,Z1051,Work in Progress Additions,Environmental Services,Environmental Services Balance sheet,"1,000.00"
2038173,Trakm8 Limited,20101223,Z1051,Work in Progress Additions,Environmental Services,Environmental Services Balance sheet,"1,000.00"
2053510,Tunstall Healthcare (UK)Ltd,20101223,Z1051,Work in Progress Additions,Housing GRF,Capital  General Fund,"4,950.00"
2055911,Ulverscroft Large Print Books Limited,20101230,40753,Book Fund Expenditure,Adult Services,Libraries  Resources,642.69
2050039,United Utilities Electricity Services Ltd,20101223,Z1051,Work in Progress Additions,Highways,Stores,744.99
2050042,United Utilities Electricity Services Ltd,20101223,Z1051,Work in Progress Additions,Highways,Stores,744.99
2050046,United Utilities Electricity Services Ltd,20101223,Z1051,Work in Progress Additions,Highways,Stores,744.99
2050050,United Utilities Electricity Services Ltd,20101223,Z1051,Work in Progress Additions,Highways,Stores,744.99
2050056,United Utilities Electricity Services Ltd,20101223,Z1051,Work in Progress Additions,Highways,Stores,744.99
2050059,United Utilities Electricity Services Ltd,20101223,Z1051,Work in Progress Additions,Highways,Stores,744.99
2050068,United Utilities Electricity Services Ltd,20101223,Z1051,Work in Progress Additions,Highways,Stores,744.99
2049862,United Utilities Electricity Services Ltd,20101223,Z1051,Work in Progress Additions,Highways,Stores,629.99
2049870,United Utilities Electricity Services Ltd,20101223,Z1051,Work in Progress Additions,Highways,Stores,629.99
2049875,United Utilities Electricity Services Ltd,20101216,Z1051,Work in Progress Additions,Highways,Stores,629.99
2049923,United Utilities Electricity Services Ltd,20101223,Z1051,Work in Progress Additions,Highways,Stores,520.00
2049931,United Utilities Electricity Services Ltd,20101223,Z1051,Work in Progress Additions,Highways,Stores,520.00
2049938,United Utilities Electricity Services Ltd,20101223,Z1051,Work in Progress Additions,Highways,Stores,744.99
2049946,United Utilities Electricity Services Ltd,20101223,Z1051,Work in Progress Additions,Highways,Stores,520.00
2049948,United Utilities Electricity Services Ltd,20101223,Z1051,Work in Progress Additions,Highways,Stores,744.99
2049949,United Utilities Electricity Services Ltd,20101223,Z1051,Work in Progress Additions,Highways,Stores,744.99
2049950,United Utilities Electricity Services Ltd,20101223,Z1051,Work in Progress Additions,Highways,Stores,520.00
2049951,United Utilities Electricity Services Ltd,20101223,Z1051,Work in Progress Additions,Highways,Stores,744.99
2049953,United Utilities Electricity Services Ltd,20101223,Z1051,Work in Progress Additions,Highways,Stores,744.99
2049852,United Utilities Electricity Services Ltd,20101223,Z1051,Work in Progress Additions,Housing Revenue Account,Capital  HRA,"1,307.71"
2054991,United Utilities Electricity Services Ltd,20101223,Z1051,Work in Progress Additions,Housing GRF,Capital  General Fund,"3,715.34"
2049996,United Utilities Electricity Services Ltd,20101223,Z1051,Work in Progress Additions,Highways,Stores,520.00
2049892,United Utilities Electricity Services Ltd,20101223,20501,Engineering Work,Environmental Services,Engineering Projects,744.99
2038794,United Utilities Water PLC#1,20101206,22200,Water Charges  Metered,Adult Services,Prop. Servs. Winifred Kettle,"9,503.06"
2038794,United Utilities Water PLC#1,20101206,22201,Water Charges  Unmetered,Adult Services,Prop. Servs. Winifred Kettle,"2,864.18"
2038794,United Utilities Water PLC#1,20101206,22200,Water Charges  Metered,Environmental Services,Mngmnt & Admin Overhead,"5,375.38"
2038794,United Utilities Water PLC#1,20101206,22201,Water Charges  Unmetered,Environmental Services,Mngmnt & Admin Overhead,"1,102.17"
2038794,United Utilities Water PLC#1,20101206,22200,Water Charges  Metered,Housing Revenue Account,Housing Revenue Account,"1,454.55"
2038794,United Utilities Water PLC#1,20101206,22200,Water Charges  Metered,Property Services,Admin Buildings  General,"11,273.68"
2038794,United Utilities Water PLC#1,20101206,22201,Water Charges  Unmetered,Property Services,Admin Buildings  General,"2,526.98"
2038816,United Utilities Water PLC#1,20101206,22200,Water Charges  Metered,Adult Services,Prop. Servs. Winifred Kettle,"5,578.75"
2038816,United Utilities Water PLC#1,20101206,22201,Water Charges  Unmetered,Adult Services,Prop. Servs. Winifred Kettle,"1,637.08"
2040816,United Utilities Water PLC#1,20101209,22201,Water Charges  Unmetered,Housing GRF,Dispersed Properties,"1,870.84"
2055179,University of Bolton#1,20101223,19100,Training Exps Tuition Fees,Children's Services,Educ Admin Training  PQFS,910.00
2054477,University of Central Lancashire,20101230,46004,Staff Training Courses,Adult Services,AD  Commissioners,"4,000.00"
2039318,Vale House#Vale Residential Ltd,20101207,54301,Residential Provision,Adult Services,OA  External Provision Residential,"15,782.72"
2055793,Veolia ES (UK) Ltd,20101223,53000,Private Contracted Services,Environmental Services,Waste,625.00
2053496,VIP-System Limited,20101223,43032,Office Stationery,Chief Executives Department,Licensing (Client),533.44
2040569,Vitalise Ellerslie Court,20101207,54301,Residential Provision,Adult Services,PD Purchaser Residential Care,"2,722.32"
2053620,Vodafone Limited#1,20101223,45252,Mobile Telephone Rental,Children's Services,Admin Human Resources Unit,"1,116.43"
2050548,Vodafone Limited#1,20101220,45252,Mobile Telephone Rental,Development & Regen,D&R Departmental Account,"4,230.30"
2054910,Vodafone Limited#1,20101223,45252,Mobile Telephone Rental,Adult Services,AD  External Recharges,"5,546.39"
2054910,Vodafone Limited#1,20101223,45254,Mobile Telephone Calls,Adult Services,AD  External Recharges,"1,674.35"
2054920,Vodafone Limited#1,20101223,45252,Mobile Telephone Rental,Adult Services,AD  External Recharges,"6,234.54"
2054920,Vodafone Limited#1,20101223,45254,Mobile Telephone Calls,Adult Services,AD  External Recharges,968.64
2041136,VOSA Testing,20101222,50002,Other Agency/Contracted Services,Environmental Services,Transport Support Service,"2,000.00"
2049199,W Craven & Son,20101220,20101,Programmed Maint. Work,Property Services,Town Hall,750.00
2053785,Wainwright Tree Stump Removal Ltd,20101223,52200,Contracted Services,Environmental Services,Greenspace,625.00
2038798,Waltons the Caterers,20101206,41202,Refreshments for Meetings,Children's Services,Technical Innovation Centre,642.60
2050555,Waltons the Caterers,20101220,41202,Refreshments for Meetings,Children's Services,Technical Innovation Centre,648.55
2045913,Waltons the Caterers,20101213,41202,Refreshments for Meetings,Children's Services,Technical Innovation Centre,"1,172.15"
2053219,Watchman Traffic Ltd,20101223,40101,Operational Equipment Maint,Adult Services,Community Safety Ext Funded Schemes  Projects,"1,946.50"
2039385,Westfield House Care Home,20101207,54301,Residential Provision,Adult Services,MH Residential External Provision,"4,292.72"
2054347,Westhoughton Coach Hire,20101223,34402,Clients  Taxi Fares,Environmental Services,Social Needs Transport,999.00
2039791,Westhoughton Coach Hire,20101206,34402,Clients  Taxi Fares,Environmental Services,Social Needs Transport,"1,813.50"
2039410,Westwood Lodge,20101207,54302,Nursing Provision,Adult Services,OA  External Provision Residential,"1,494.08"
2055011,Whites Waste Paper Ltd,20101223,53000,Private Contracted Services,Environmental Services,Waste,859.57
2053901,Wigan & Leigh College,20101230,19100,Training Exps Tuition Fees,Chief Executives Department,Personnel Svs Occ Health Unit,850.00
2048951,Wilde Consultants Ltd,20101216,53100,Agency Staff  Fulltime,Environmental Services,Engineering Projects,"5,208.12"
2054348,Willows Minibus,20101223,34402,Clients  Taxi Fares,Environmental Services,Social Needs Transport,"2,088.00"
2039793,Willows Minibus,20101206,34402,Clients  Taxi Fares,Environmental Services,Social Needs Transport,"3,168.00"
2039374,Windermere House,20101207,54302,Nursing Provision,Adult Services,MH Residential External Provision,"2,214.00"
2039319,Wingates Residential Home,20101207,54301,Residential Provision,Adult Services,OA  External Provision Residential,"29,912.64"
2053438,Winscribe Europe Ltd,20101223,40141,Office Equipment Maintenance,Central Services,Civic & Admin Text & Reprographics,910.00
2054403,Wireless CCTV Ltd,20101230,45254,Mobile Telephone Calls,Adult Services,Community Safety Ext Funded Schemes  Projects,"3,403.87"
2039330,Withins Residential Home,20101207,54301,Residential Provision,Adult Services,OA  External Provision Residential,"63,073.94"
2039417,Withy Grove House,20101207,54301,Residential Provision,Adult Services,OA  External Provision Residential,"3,998.57"
2039418,Withy Grove House,20101207,54301,Residential Provision,Adult Services,OA  External Provision Residential,"1,866.00"
2040410,Wolters Kluwer (UK) Ltd,20101230,47200,General Subscriptions,Environmental Services,Social Needs Transport,571.15
2039409,Woodlands Christian Care Centre,20101207,54302,Nursing Provision,Adult Services,OA  External Provision Residential,"1,732.28"
2040559,Woodlands House Residential Home Ltd,20101207,54301,Residential Provision,Adult Services,OA  External Provision Residential,"1,081.67"
2040582,Woodlands House Residential Home Ltd,20101207,54301,Residential Provision,Adult Services,OA  External Provision Residential,"23,387.09"
2053412,WTP Pyrotechnics,20101223,47106,Xmas Lights,Central Services,Christmas Lights,"3,500.00"
2053985,Xerox Business Services,20101223,43030,Photocopying Lease/Maintenance,Chief Executives Department,MFD,"31,455.50"
2054350,Y & S Private Hire,20101223,34402,Clients  Taxi Fares,Environmental Services,Social Needs Transport,"1,614.60"
2039794,Y & S Private Hire,20101206,34402,Clients  Taxi Fares,Environmental Services,Social Needs Transport,"2,979.45"
2056930,YMCA,20101230,47103,Miscellaneous Grants,Children's Services,Youth Serv Voluntary Organisations,"8,127.50"
2046732,Yorkshire Purchasing Organisation,20101222,41101,Catering ProvisionsFood,Environmental Services,Catering,999.72
2046686,Yorkshire Purchasing Organisation,20101222,41101,Catering ProvisionsFood,Environmental Services,Catering,744.58
2046661,Yorkshire Purchasing Organisation,20101222,41101,Catering ProvisionsFood,Environmental Services,Catering,635.13
2046707,Yorkshire Purchasing Organisation,20101222,41101,Catering ProvisionsFood,Environmental Services,Catering,842.44
2048335,Yorkshire Purchasing Organisation,20101215,41101,Catering ProvisionsFood,Adult Services,Civic Catering Dido,636.44
2049005,Yorkshire Purchasing Organisation,20101222,41101,Catering ProvisionsFood,Adult Services,Civic Catering Dido,741.25
2046768,Yorkshire Purchasing Organisation,20101222,41101,Catering ProvisionsFood,Adult Services,OA  Firwood  Residential,715.72
2046766,Yorkshire Purchasing Organisation,20101222,41101,Catering ProvisionsFood,Adult Services,OA  Laburnum Lodge  Residential,759.45
